Workbook

Sheet VEJLEDNING
B3: Dette værktøj er udarbejdet af Movia i samarbejde med Trafikselskaberne i Danmark og Trafik, Bygge- og Boligstyrelsen.
B4: Værktøjet er udviklet til beregning af merpris ved anvendelse af busser med alternative drivmidler sammenholdt med diesel
B5: Værktøjet består af fanebladene: COCKPIT, BEREGNINGSARK, INPUT_DATA, DATA_UDTRÆK og LISTER (skjult).
B6: Alle brugerdata angives i COCKPIT. COCKPIT viser alle beregningsforudsætninger, og brugeren har mulighed for at angive egne data.
B7: Inputværdier, som er markeret med ? er nødvendige at angive.
B8: Værdier markeret med ! er omkostningsdrivende, og det anbefales at der anvendes brugerdata.
B9: Hvis køreplantimeantallet ikke angives (?!) skal årlige rutekilometer i stedet angives.
B10: Beregnede data kan gemmes i arket DATA_UDTRÆK ved at trykke på "Gem beregning"-knappen
B11: Værktøjets brugerværdier kan nulstilles ved at trykke "Nulstil alle værdier"-knappen.
B12: Gemte beregnede data kan slettes ved at trykke på "Slet gemte beregninger"-knappen.
B13: Alle beregninger foretages i beregningsarket.
B14: Værktøjet understøtter følgende bustyper: dieselbusser, som anvender diesel og HVO-biodiesel, elbusser og CNG-busser, som anvender bionaturgas på certifikater.
B15: Beregning af merpriser ved biogas er behæftet med betydelig usikkerhed, ogde beregnede værdier bør kun anvendes ved omstilling til biogas i større flådes (ca. 20+ busser).
B16: NB. Undlad at benytte programmet med ekstern monitor, da det kan forstyrre knapper mv.
B19: Version 1.1

Sheet COCKPIT
E3: ØNSKET LØSNING | K3: REFERENCE LØSNING
E4: BRUGERVÆRDI | G4: STANDARDVÆRDI | K4: BRUGERVÆRDI | M4: STANDARDVÆRDI
B5: PROJEKTTYPE
B6: ny kontrakt
B8: tilkøb af HVO i eksisterende kontrakt
B10: drivmiddel | D10: ? | I10: drivmiddel | M10: diesel | O10: Elbus, depot
B12: kørselstype | D12: ? | I12: kørselstype | M12: =KørTyp -> Landevejsbusser | O12: Landevejsbusser
B14: kontraktlængde | C14: år | D14: ? | E14: 12 | I14: kontraktlængde | J14: år | M14: =ÅrØns -> 12
B16: projektlængde | C16: år | D16: ? | E16: 12
B18: linje/kontraktenhed | E18: A16, Roskilde
B20: BUSDATA
B21: driftsbusser | C21: stk. | D21: ? | E21: 17
B23: buslængde | C23: m | D23: ? | I23: buslængde | J23: m | M23: =BusLænØns -> 11,9-12,8 | O23: 11,9-12,8
B25: køreplanstimer | C25: timer/år | D25: ?! | E25: 62986 | I25: årskørsel | J25: timer/år | M25: =TimÅrØns -> 62986
B27: rutekm | C27: km/år | D27: ! | E27: 1343192.744 | G27: =TimÅrØns*INDEX(kmT,1,MATCH(KørTyp,KØRSELSTYPE,0)) -> 2204510 | I27: årskørsel | J27: km/år | M27: =IF(RutKmØnsVær>0,RutKmØnsVær,TimRef*INDEX(kmT,1,KørTypOps)) -> 1343192.744
B29: tomkørsel | C29: % rutekm | G29: =INDEX(TomKmOps,1,MATCH(KørTyp,KØRSELSTYPE,0)) -> 0.12
B31: total busser (inkl. reserve og indskud) | C31: stk. | D31: ! | E31: 20 | G31: =DriBusVær+ROUNDUP(DriBusVær/ResBusAnd,0)+ROUNDUP(IF(OR(DriØns=ElDep,DriØns=ElBy),DriBusVær/DriBusAnd*INDEX((IndBus_11,IndBus_12,IndBus_13,IndBus_137,IndBus_15,IndBus_18),kmInd,IF(DriØns=ElDep,1,2),BusLænOps),0),0) -> 20 | I31: antal busser | J31: stk. | M31: =DriBusVær+ROUNDUP(DriBusVær/ResBusAnd,0) -> 19
B33: årskørsel (inkl. tomkørsel) | C33: km/år/bus | G33: =RutKmØns*(1+TomKmPct)/BusAnt -> 75218.79366 | I33: årskørsel (inkl. tomkørsel) | J33: km/år/bus | M33: =RutkmRef*(1+TomKmPct)/BusAntRef -> 79177.67754
B35: rente | C35: % pa | G35: =Rente -> 0.02
B37: klimaanlæg | G37: =IF(OR(drivmiddel=ElDep,drivmiddel=ElBy),"ja","nej") -> ja | I37: klimaanlæg | M37: =IF(ØnsKlima="","nej",ØnsKlima) -> ja | O37: ja | Q37: ja
B39: buspris | C39: kr./bus | G39: =IF(ØnsKlima=JA,INDEX(BUSPRIS,BusLænOps,5)+INDEX(BUSPRIS,BusLænOps,DriOps),INDEX(BUSPRIS,BusLænOps,DriOps))+IF(AND(DriØns=ElBy,EffBy=kW_450),INDEX(BUSPRIS,BusLænOps,6),0) -> 3175000 | I39: buspris | J39: kr./bus | M39: =IF(RefKlima=JA,INDEX(BUSPRIS,BusLænRefOps,5)+INDEX(BUSPRIS,BusLænRefOps,1),INDEX(BUSPRIS,BusLænRefOps,1)) -> 1675000
B41: momsfradrag | C41: % af moms | G41: =MomsFrad -> 0.5
B43: restværdi | C43: kr./bus | G43: =INDEX(Restværdi,1,ÅrØns)*BusPriØns+IF(OR(drivmiddel=ElDep,drivmiddel=ElBy),INDEX(Restværdi,2,ÅrØns)*BatUds,0) -> 279375 | I43: restværdi | J43: kr./bus | M43: =INDEX(Restværdi,1,ÅrRef)*BusPriRef -> 41875
B45: forsikring | C45: kr./bus/år | G45: =BusPriØns*Forsikring -> 38100 | I45: forsikring | J45: kr./bus/år | M45: =BusPriRef*Forsikring -> 20100
B47: service | C47: kr./km | G47: =ÅrsKm*INDEX((SerP11,SerP12,SerP13,SerP137,SerP15,SerP18),DriOps,ROUND(ÅrØns,0),BusLænOps) -> 1.44 | I47: service | J47: kr./km | M47: =ÅrsKmRef*INDEX((SerP11,SerP12,SerP13,SerP137,SerP15,SerP18),5,ROUND(ÅrRef,0),BusLænRefOps) -> 1.6
B49: skader | C49: kr./år/bus | G49: =IF(KørTyp=ByPro,kmÅrØns/SkaKmÅr*SkaPro,IF(KørTyp=ByKøb,kmÅrØns/SkaKmÅr*SkaKøb,IF(KørTyp=Land,kmÅrØns/SkaKmÅr*SkaLan,0))) -> 15043.75873 | I49: skader | J49: kr./år/bus | M49: =IF(KørTyp=ByPro,kmÅrRef/SkaKmÅr*SkaPro,IF(KørTyp=ByKøb,kmÅrRef/SkaKmÅr*SkaKøb,IF(KørTyp=Land,kmÅrRef/SkaKmÅr*SkaLan,0))) -> 15835.53551
B51: forbrug, fremdrift | C51: =INDEX(FORBRUG,MATCH(drivmiddel,ØnskLøs,0),2) -> kWh/km | G51: =INDEX((FORB_BY_PROV,FORB_BY_KØB,FORB_LAND),BusLænOps,DriOps,KørTypOps) -> 1.3225 | I51: forbrug, fremdrift | J51: km/l | M51: =INDEX((FORB_BY_PROV,FORB_BY_KØB,FORB_LAND),BusLænRefOps,5,KørTypOps) -> 3.7
B53: forbrug, opvarmning | C53: liter HVO/km | G53: =IF(drivmiddel=ElDep,INDEX((FORB_BY_PROV,FORB_BY_KØB,FORB_LAND),BusLænOps,6,KørTypOps),"") -> 0.01666666667
B55: chaufførløn | C55: kr./køreplanstime | G55: =ChaLøn -> 400
B57: batteriudskiftning | C57: kr./bus | G57: =IF(ForEl*kmÅrØns*ÅrØns>kWhBatUds,INDEX(BatPris,1,BusLænOps),0) -> 600000
B59: LADEINFRASTRUKTUR
B60: ladeeffekt, depot | C60: kW/lader | G60: =IF(drivmiddel=ElDep,Eff_150,IF(drivmiddel=ElBy,LISTER!K3,0)) -> 150 (2*75)
B62: ladetab | C62: % | G62: =LadTabBy -> 0.05
B64: antal ladere, depot | C64: stk. | G64: =ROUNDUP((BusAnt-ROUNDUP(IF(DriBusVær>0,DriBusVær,BusAnt)/ResBusAnd,0))*INDEX(DepPris,MATCH(IF(kWdepVær>0,kWdepVær,kWdepStand),EFFEKT_DEPOT,0),7),0) -> 9
B66: depotlader, pris (ex moms) | C66: kr./stk. | G66: =INDEX(DepPris,MATCH(EffDepLad,EFFEKT_DEPOT,0),1) -> 440000
B68: depotlader, installation (ex moms) | C68: kr./første lader | G68: =INDEX(DepPris,MATCH(EffDepLad,EFFEKT_DEPOT,0),2) -> 234000
B70: depotlader, installation (ex moms) | C70: kr./anden lader | G70: =INDEX(DepPris,MATCH(EffDepLad,EFFEKT_DEPOT,0),3) -> 139000
B72: depotlader, nettilslutning | C72: Ampere | G72: =IF(nLadDepVær>0,nLadDepVær,nLadDepStand)*INDEX(DepPris,MATCH(EffDepLad,EFFEKT_DEPOT,0),4) -> 2016
B74: depotlader, nettilslutning (ex moms) | C74: kr./Amp. | G74: =AmpPris -> 1000
B76: depotlader, service (ex moms) | C76: kr./stk./år | G76: =INDEX(DepPris,MATCH(EffDepLad,EFFEKT_DEPOT,0),6) -> 4000
B78: ladeeffekt, byrum | C78: kW/lader | G78: =IF(drivmiddel=ElBy,kW_450,0) -> 0
B80: antal ladere, byrum | C80: stk. | G80: =ROUNDUP((BusAnt-ROUNDUP(BusAnt/ResBusAnd,0))*LadPerBus+1,0) -> 4
B82: byrumlader, pris (ex moms) | C82: kr./lader | G82: =INDEX(ByPris,MATCH(EffBy,EFFEKT_BYRUM,0),1) -> 
B84: byrumlader, service (ex moms) | C84: kr./lader | G84: =INDEX(ByPris,MATCH(EffBy,EFFEKT_BYRUM,0),2) -> 
B86: DRIVMIDLER MV
B87: diesel (inkl. moms) | C87: kr./l | G87: =DieselPris -> 8
B89: HVO (inkl. moms) | C89: kr./l | G89: =HVOPris -> 13.5
B91: el (inkl. moms) | C91: kr./kWh | G91: =ElPris -> 0.8
B93: biogas (inkl. moms) | C93: kr./Nm3 | G93: =BiogasPris -> 7.5
B95: AdBlue, pris | C95: kr./l | G95: =AddBluPris -> 2
B97: AdBlue, forbrug | C97: % dieselforbrug | G97: =AddBluFor -> 0.07
B99: olie, pris | C99: kr./l | G99: =OliePri -> 63
B101: olie, forbrug | C101: % dieselforbrug | G101: =OlieFor -> 0.002
B103: dæk | C103: kr./stk. | G103: =DækPri -> 2500
B105: dæk, levetid | C105: km | G105: =DækLeve -> 100000
B107: merpris for ønsket løsning | C107: kr./år | G107: =MerPrisÅr -> 3573398.817
B109: merpris for ønsket løsning | C109: kr. i projektperiode | G109: =MerPrisPer -> 42880785.81
B111: støtteberettiget beløb | C111: 75% af merpris | G111: =StøBel -> 32160589.36
B113: egenfinansiering | C113: 25% af merpris | G113: =EgeFin -> 10720196.45

Sheet DATA_UDTRÆK
A1: MERPRIS | D1: MERPRIS | G1: MERPRIS | J1: MERPRIS | M1: MERPRIS | P1: MERPRIS | S1: MERPRIS | V1: MERPRIS | Y1: MERPRIS | AB1: MERPRIS | AE1: MERPRIS | AH1: MERPRIS | AK1: MERPRIS | AN1: MERPRIS | AQ1: MERPRIS | AT1: MERPRIS | AW1: MERPRIS | AZ1: MERPRIS | BC1: MERPRIS | BF1: MERPRIS | BI1: MERPRIS | BL1: MERPRIS | BO1: MERPRIS | BR1: MERPRIS | BU1: MERPRIS | BX1: MERPRIS | CA1: MERPRIS | CD1: MERPRIS
A2: merpris for ønsket løsning | B2: kr./år | C2: 2668894.538 | D2: merpris for ønsket løsning | E2: kr./år | F2: 2745458.222 | G2: merpris for ønsket løsning | H2: kr./år | I2: 3024272.79 | J2: merpris for ønsket løsning | K2: kr./år | L2: 2931518.164 | M2: merpris for ønsket løsning | N2: kr./år | O2: 4111763.14 | P2: merpris for ønsket løsning | Q2: kr./år | R2: 4272328.25 | S2: merpris for ønsket løsning | T2: kr./år | U2: 6113484.413 | V2: merpris for ønsket løsning | W2: kr./år | X2: 6012503.64 | Y2: merpris for ønsket løsning | Z2: kr./år | AA2: 4775025.733 | AB2: merpris for ønsket løsning | AC2: kr./år | AD2: 3806932.643 | AE2: merpris for ønsket løsning | AF2: kr./år | AG2: 3306232.373 | AH2: merpris for ønsket løsning | AI2: kr./år | AJ2: 3835975.246 | AK2: merpris for ønsket løsning | AL2: kr./år | AM2: 1126180.534 | AN2: merpris for ønsket løsning | AO2: kr./år | AP2: 1385590.355 | AQ2: merpris for ønsket løsning | AR2: kr./år | AS2: 1010091.555 | AT2: merpris for ønsket løsning | AU2: kr./år | AV2: 1193435.949 | AW2: merpris for ønsket løsning | AX2: kr./år | AY2: 877659.8424 | AZ2: merpris for ønsket løsning | BA2: kr./år | BB2: 737411.0559 | BC2: merpris for ønsket løsning | BD2: kr./år | BE2: 791095.7462 | BF2: merpris for ønsket løsning | BG2: kr./år | BH2: 686038.32 | BI2: merpris for ønsket løsning | BJ2: kr./år | BK2: 3126819.646 | BL2: merpris for ønsket løsning | BM2: kr./år | BN2: 4039600.175 | BO2: merpris for ønsket løsning | BP2: kr./år | BQ2: 3962332.027 | BR2: merpris for ønsket løsning | BS2: kr./år | BT2: 3223833.364 | BU2: merpris for ønsket løsning | BV2: kr./år | BW2: 5077131.665 | BX2: merpris for ønsket løsning | BY2: kr./år | BZ2: 4712351.687 | CA2: merpris for ønsket løsning | CB2: kr./år | CC2: 1796321.054 | CD2: merpris for ønsket løsning | CE2: kr./år | CF2: 2885061.741
A3: merpris for ønsket løsning | B3: kr. i projektperiode | C3: 32026734.45 | D3: merpris for ønsket løsning | E3: kr. i projektperiode | F3: 32945498.67 | G3: merpris for ønsket løsning | H3: kr. i projektperiode | I3: 36291273.48 | J3: merpris for ønsket løsning | K3: kr. i projektperiode | L3: 35178217.97 | M3: merpris for ønsket løsning | N3: kr. i projektperiode | O3: 49341157.68 | P3: merpris for ønsket løsning | Q3: kr. i projektperiode | R3: 51267938.99 | S3: merpris for ønsket løsning | T3: kr. i projektperiode | U3: 73361812.95 | V3: merpris for ønsket løsning | W3: kr. i projektperiode | X3: 72150043.68 | Y3: merpris for ønsket løsning | Z3: kr. i projektperiode | AA3: 57300308.8 | AB3: merpris for ønsket løsning | AC3: kr. i projektperiode | AD3: 45683191.72 | AE3: merpris for ønsket løsning | AF3: kr. i projektperiode | AG3: 39674788.48 | AH3: merpris for ønsket løsning | AI3: kr. i projektperiode | AJ3: 46031702.95 | AK3: merpris for ønsket løsning | AL3: kr. i projektperiode | AM3: 13514166.41 | AN3: merpris for ønsket løsning | AO3: kr. i projektperiode | AP3: 16627084.27 | AQ3: merpris for ønsket løsning | AR3: kr. i projektperiode | AS3: 12121098.66 | AT3: merpris for ønsket løsning | AU3: kr. i projektperiode | AV3: 14321231.38 | AW3: merpris for ønsket løsning | AX3: kr. i projektperiode | AY3: 10531918.11 | AZ3: merpris for ønsket løsning | BA3: kr. i projektperiode | BB3: 8848932.671 | BC3: merpris for ønsket løsning | BD3: kr. i projektperiode | BE3: 9493148.955 | BF3: merpris for ønsket løsning | BG3: kr. i projektperiode | BH3: 8232459.84 | BI3: merpris for ønsket løsning | BJ3: kr. i projektperiode | BK3: 37521835.76 | BL3: merpris for ønsket løsning | BM3: kr. i projektperiode | BN3: 48475202.09 | BO3: merpris for ønsket løsning | BP3: kr. i projektperiode | BQ3: 47547984.32 | BR3: merpris for ønsket løsning | BS3: kr. i projektperiode | BT3: 38686000.37 | BU3: merpris for ønsket løsning | BV3: kr. i projektperiode | BW3: 40617053.32 | BX3: merpris for ønsket løsning | BY3: kr. i projektperiode | BZ3: 37698813.5 | CA3: merpris for ønsket løsning | CB3: kr. i projektperiode | CC3: 14370568.43 | CD3: merpris for ønsket løsning | CE3: kr. i projektperiode | CF3: 23080493.93
A4: støtteberettiget beløb | B4: 75% af merpris | C4: 24020050.84 | D4: støtteberettiget beløb | E4: 75% af merpris | F4: 24709124 | G4: støtteberettiget beløb | H4: 75% af merpris | I4: 27218455.11 | J4: støtteberettiget beløb | K4: 75% af merpris | L4: 26383663.47 | M4: støtteberettiget beløb | N4: 75% af merpris | O4: 37005868.26 | P4: støtteberettiget beløb | Q4: 75% af merpris | R4: 38450954.25 | S4: støtteberettiget beløb | T4: 75% af merpris | U4: 55021359.71 | V4: støtteberettiget beløb | W4: 75% af merpris | X4: 54112532.76 | Y4: støtteberettiget beløb | Z4: 75% af merpris | AA4: 42975231.6 | AB4: støtteberettiget beløb | AC4: 75% af merpris | AD4: 34262393.79 | AE4: støtteberettiget beløb | AF4: 75% af merpris | AG4: 29756091.36 | AH4: støtteberettiget beløb | AI4: 75% af merpris | AJ4: 34523777.21 | AK4: støtteberettiget beløb | AL4: 75% af merpris | AM4: 10135624.81 | AN4: støtteberettiget beløb | AO4: 75% af merpris | AP4: 12470313.2 | AQ4: støtteberettiget beløb | AR4: 75% af merpris | AS4: 9090823.995 | AT4: støtteberettiget beløb | AU4: 75% af merpris | AV4: 10740923.54 | AW4: støtteberettiget beløb | AX4: 75% af merpris | AY4: 7898938.582 | AZ4: støtteberettiget beløb | BA4: 75% af merpris | BB4: 6636699.504 | BC4: støtteberettiget beløb | BD4: 75% af merpris | BE4: 7119861.716 | BF4: støtteberettiget beløb | BG4: 75% af merpris | BH4: 6174344.88 | BI4: støtteberettiget beløb | BJ4: 75% af merpris | BK4: 28141376.82 | BL4: støtteberettiget beløb | BM4: 75% af merpris | BN4: 36356401.57 | BO4: støtteberettiget beløb | BP4: 75% af merpris | BQ4: 35660988.24 | BR4: støtteberettiget beløb | BS4: 75% af merpris | BT4: 29014500.27 | BU4: støtteberettiget beløb | BV4: 75% af merpris | BW4: 30462789.99 | BX4: støtteberettiget beløb | BY4: 75% af merpris | BZ4: 28274110.12 | CA4: støtteberettiget beløb | CB4: 75% af merpris | CC4: 10777926.32 | CD4: støtteberettiget beløb | CE4: 75% af merpris | CF4: 17310370.45
A5: egenfinansiering | B5: 25% af merpris | C5: 8006683.613 | D5: egenfinansiering | E5: 25% af merpris | F5: 8236374.667 | G5: egenfinansiering | H5: 25% af merpris | I5: 9072818.37 | J5: egenfinansiering | K5: 25% af merpris | L5: 8794554.491 | M5: egenfinansiering | N5: 25% af merpris | O5: 12335289.42 | P5: egenfinansiering | Q5: 25% af merpris | R5: 12816984.75 | S5: egenfinansiering | T5: 25% af merpris | U5: 18340453.24 | V5: egenfinansiering | W5: 25% af merpris | X5: 18037510.92 | Y5: egenfinansiering | Z5: 25% af merpris | AA5: 14325077.2 | AB5: egenfinansiering | AC5: 25% af merpris | AD5: 11420797.93 | AE5: egenfinansiering | AF5: 25% af merpris | AG5: 9918697.12 | AH5: egenfinansiering | AI5: 25% af merpris | AJ5: 11507925.74 | AK5: egenfinansiering | AL5: 25% af merpris | AM5: 3378541.603 | AN5: egenfinansiering | AO5: 25% af merpris | AP5: 4156771.066 | AQ5: egenfinansiering | AR5: 25% af merpris | AS5: 3030274.665 | AT5: egenfinansiering | AU5: 25% af merpris | AV5: 3580307.846 | AW5: egenfinansiering | AX5: 25% af merpris | AY5: 2632979.527 | AZ5: egenfinansiering | BA5: 25% af merpris | BB5: 2212233.168 | BC5: egenfinansiering | BD5: 25% af merpris | BE5: 2373287.239 | BF5: egenfinansiering | BG5: 25% af merpris | BH5: 2058114.96 | BI5: egenfinansiering | BJ5: 25% af merpris | BK5: 9380458.939 | BL5: egenfinansiering | BM5: 25% af merpris | BN5: 12118800.52 | BO5: egenfinansiering | BP5: 25% af merpris | BQ5: 11886996.08 | BR5: egenfinansiering | BS5: 25% af merpris | BT5: 9671500.091 | BU5: egenfinansiering | BV5: 25% af merpris | BW5: 10154263.33 | BX5: egenfinansiering | BY5: 25% af merpris | BZ5: 9424703.375 | CA5: egenfinansiering | CB5: 25% af merpris | CC5: 3592642.108 | CD5: egenfinansiering | CE5: 25% af merpris | CF5: 5770123.483
B6: Omkostning ønsket løsning | C6: 38705945.51 | E6: Omkostning ønsket løsning | F6: 38563478.23 | H6: Omkostning ønsket løsning | I6: 39061323.77 | K6: Omkostning ønsket løsning | L6: 38749538.17 | N6: Omkostning ønsket løsning | O6: 58196763.01 | Q6: Omkostning ønsket løsning | R6: 58066209.17 | T6: Omkostning ønsket løsning | U6: 60198484.28 | W6: Omkostning ønsket løsning | X6: 59806384.56 | Z6: Omkostning ønsket løsning | AA6: 48534986.62 | AC6: Omkostning ønsket løsning | AD6: 48753839.75 | AF6: Omkostning ønsket løsning | AG6: 47066193.26 | AI6: Omkostning ønsket løsning | AJ6: 48782882.35 | AL6: Omkostning ønsket løsning | AM6: 13062650.02 | AO6: Omkostning ønsket løsning | AP6: 13836256.04 | AR6: Omkostning ønsket løsning | AS6: 12946561.04 | AU6: Omkostning ønsket løsning | AV6: 13644101.63 | AX6: Omkostning ønsket løsning | AY6: 8970747.223 | BA6: Omkostning ønsket løsning | BB6: 9132111.098 | BD6: Omkostning ønsket løsning | BE6: 9185795.788 | BG6: Omkostning ønsket løsning | BH6: 8779125.701 | BJ6: Omkostning ønsket løsning | BK6: 42265167.25 | BM6: Omkostning ønsket løsning | BN6: 40769414.13 | BP6: Omkostning ønsket løsning | BQ6: 43100679.63 | BS6: Omkostning ønsket løsning | BT6: 39953647.32 | BV6: Omkostning ønsket løsning | BW6: 33016475.93 | BY6: Omkostning ønsket løsning | BZ6: 32210890.46 | CB6: Omkostning ønsket løsning | CC6: 29294859.82 | CE6: Omkostning ønsket løsning | CF6: 30824406
B7: Omkostning dieselreference | C7: 36037050.98 | E7: Omkostning dieselreference | F7: 35818020.01 | H7: Omkostning dieselreference | I7: 36037050.98 | K7: Omkostning dieselreference | L7: 35818020.01 | N7: Omkostning dieselreference | O7: 54084999.87 | Q7: Omkostning dieselreference | R7: 53793880.92 | T7: Omkostning dieselreference | U7: 54084999.87 | W7: Omkostning dieselreference | X7: 53793880.92 | Z7: Omkostning dieselreference | AA7: 43759960.88 | AC7: Omkostning dieselreference | AD7: 44946907.11 | AF7: Omkostning dieselreference | AG7: 43759960.88 | AI7: Omkostning dieselreference | AJ7: 44946907.11 | AL7: Omkostning dieselreference | AM7: 11936469.49 | AO7: Omkostning dieselreference | AP7: 12450665.68 | AR7: Omkostning dieselreference | AS7: 11936469.49 | AU7: Omkostning dieselreference | AV7: 12450665.68 | AX7: Omkostning dieselreference | AY7: 8093087.381 | BA7: Omkostning dieselreference | BB7: 8394700.042 | BD7: Omkostning dieselreference | BE7: 8394700.042 | BG7: Omkostning dieselreference | BH7: 8093087.381 | BJ7: Omkostning dieselreference | BK7: 39138347.6 | BM7: Omkostning dieselreference | BN7: 36729813.95 | BP7: Omkostning dieselreference | BQ7: 39138347.6 | BS7: Omkostning dieselreference | BT7: 36729813.95 | BV7: Omkostning dieselreference | BW7: 27939344.26 | BY7: Omkostning dieselreference | BZ7: 27498538.77 | CB7: Omkostning dieselreference | CC7: 27498538.77 | CE7: Omkostning dieselreference | CF7: 27939344.26
B8: Merpris i % | C8: 0.07405973756 | E8: Merpris i % | F8: 0.07665019511 | H8: Merpris i % | I8: 0.08392120632 | K8: Merpris i % | L8: 0.08184478547 | N8: Merpris i % | O8: 0.07602409448 | Q8: Merpris i % | R8: 0.07942033883 | T8: Merpris i % | U8: 0.1130347495 | W8: Merpris i % | X8: 0.1117692856 | Z8: Merpris i % | AA8: 0.1091186015 | AC8: Merpris i % | AD8: 0.08469843396 | AF8: Merpris i % | AG8: 0.07555382378 | AI8: Merpris i % | AJ8: 0.08534458748 | AL8: Merpris i % | AM8: 0.09434787525 | AO8: Merpris i % | AP8: 0.1112864477 | AR8: Merpris i % | AS8: 0.08462230444 | AU8: Merpris i % | AV8: 0.09585318402 | AX8: Merpris i % | AY8: 0.1084456155 | BA8: Merpris i % | BB8: 0.08784245444 | BD8: Merpris i % | BE8: 0.09423752395 | BG8: Merpris i % | BH8: 0.0847684311 | BJ8: Merpris i % | BK8: 0.07989145782 | BM8: Merpris i % | BN8: 0.1099815038 | BP8: Merpris i % | BQ8: 0.101239124 | BS8: Merpris i % | BT8: 0.08777156802 | BV8: Merpris i % | BW8: 0.1817197862 | BY8: Merpris i % | BZ8: 0.1713673489 | CB8: Merpris i % | CC8: 0.06532423664 | CE8: Merpris i % | CF8: 0.1032616125
A9: Anvendte brugerværdier, ønsket løsning | D9: Anvendte brugerværdier, ønsket løsning | G9: Anvendte brugerværdier, ønsket løsning | J9: Anvendte brugerværdier, ønsket løsning | M9: Anvendte brugerværdier, ønsket løsning | P9: Anvendte brugerværdier, ønsket løsning | S9: Anvendte brugerværdier, ønsket løsning | V9: Anvendte brugerværdier, ønsket løsning | Y9: Anvendte brugerværdier, ønsket løsning | AB9: Anvendte brugerværdier, ønsket løsning | AE9: Anvendte brugerværdier, ønsket løsning | AH9: Anvendte brugerværdier, ønsket løsning | AK9: Anvendte brugerværdier, ønsket løsning | AN9: Anvendte brugerværdier, ønsket løsning | AQ9: Anvendte brugerværdier, ønsket løsning | AT9: Anvendte brugerværdier, ønsket løsning | AW9: Anvendte brugerværdier, ønsket løsning | AZ9: Anvendte brugerværdier, ønsket løsning | BC9: Anvendte brugerværdier, ønsket løsning | BF9: Anvendte brugerværdier, ønsket løsning | BI9: Anvendte brugerværdier, ønsket løsning | BL9: Anvendte brugerværdier, ønsket løsning | BO9: Anvendte brugerværdier, ønsket løsning | BR9: Anvendte brugerværdier, ønsket løsning | BU9: Anvendte brugerværdier, ønsket løsning | BX9: Anvendte brugerværdier, ønsket løsning | CA9: Anvendte brugerværdier, ønsket løsning | CD9: Anvendte brugerværdier, ønsket løsning
A10: buslinje/kontraktenhed | C10: A16, Roskilde | D10: buslinje/kontraktenhed | F10: A16, Roskilde | G10: buslinje/kontraktenhed | I10: A16, Roskilde | J10: buslinje/kontraktenhed | L10: A16, Roskilde | M10: buslinje/kontraktenhed | O10: A17, 2A | P10: buslinje/kontraktenhed | R10: A17, 2A | S10: buslinje/kontraktenhed | U10: A17, 2A | V10: buslinje/kontraktenhed | X10: A17, 2A | Y10: buslinje/kontraktenhed | AA10: A17, 18 | AB10: buslinje/kontraktenhed | AD10: A17, 18 | AE10: buslinje/kontraktenhed | AG10: A17, 18 | AH10: buslinje/kontraktenhed | AJ10: A17, 18 | AK10: buslinje/kontraktenhed | AM10: A17, Ballerup/Egedal | AN10: buslinje/kontraktenhed | AP10: A17, Ballerup/Egedal | AQ10: buslinje/kontraktenhed | AS10: A17, Ballerup/Egedal | AT10: buslinje/kontraktenhed | AV10: A17, Ballerup/Egedal | AW10: buslinje/kontraktenhed | AY10: A18-2, Glostrup mv | AZ10: buslinje/kontraktenhed | BB10: A18-2, Glostrup mv | BC10: buslinje/kontraktenhed | BE10: A18-2, Glostrup mv | BF10: buslinje/kontraktenhed | BH10: A18-2, Glostrup mv | BI10: buslinje/kontraktenhed | BK10: A18-5, Slagelse | BL10: buslinje/kontraktenhed | BN10: A18-5, Slagelse | BO10: buslinje/kontraktenhed | BQ10: A18-5, Slagelse | BR10: buslinje/kontraktenhed | BT10: A18-5, Slagelse | BU10: buslinje/kontraktenhed | BW10: A18-9+10, Nykøbing Falster | BX10: buslinje/kontraktenhed | BZ10: A18-9+10, Nykøbing Falster | CA10: buslinje/kontraktenhed | CC10: A18-9+10, Nykøbing Falster | CD10: buslinje/kontraktenhed | CF10: A18-9+10, Nykøbing Falster
A11: buslængde | C11: 11,9-12,8 | D11: buslængde | F11: 11,9-12,8 | G11: buslængde | I11: 11,9-12,8 | J11: buslængde | L11: 11,9-12,8 | M11: buslængde | O11: 18-18,8 | P11: buslængde | R11: 18-18,8 | S11: buslængde | U11: 18-18,8 | V11: buslængde | X11: 18-18,8 | Y11: buslængde | AA11: 11,9-12,8 | AB11: buslængde | AD11: 11,9-12,8 | AE11: buslængde | AG11: 11,9-12,8 | AH11: buslængde | AJ11: 11,9-12,8 | AK11: buslængde | AM11: 11,9-12,8 | AN11: buslængde | AP11: 11,9-12,8 | AQ11: buslængde | AS11: 11,9-12,8 | AT11: buslængde | AV11: 11,9-12,8 | AW11: buslængde | AY11: 11,9-12,8 | AZ11: buslængde | BB11: 11,9-12,8 | BC11: buslængde | BE11: 11,9-12,8 | BF11: buslængde | BH11: 11,9-12,8 | BI11: buslængde | BK11: 11,9-12,8 | BL11: buslængde | BN11: 11,9-12,8 | BO11: buslængde | BQ11: 11,9-12,8 | BR11: buslængde | BT11: 11,9-12,8 | BU11: buslængde | BW11: 11,9-12,8 | BX11: buslængde | BZ11: 11,9-12,8 | CA11: buslængde | CC11: 11,9-12,8 | CD11: buslængde | CF11: 11,9-12,8
A12: kørselstype | C12: Bybusser, provins/forstad | D12: rutekm | E12: km/år | F12: 1343192.744 | G12: kørselstype | I12: Bybusser, provins/forstad | J12: rutekm | K12: km/år | L12: 1343192.744 | M12: kørselstype | O12: Bybusser, København | P12: rutekm | Q12: km/år | R12: 1652921.963 | S12: kørselstype | U12: Bybusser, København | V12: rutekm | W12: km/år | X12: 1652921.963 | Y12: kørselstype | AA12: Bybusser, København | AB12: rutekm | AC12: km/år | AD12: 1699019.2 | AE12: kørselstype | AG12: Bybusser, København | AH12: rutekm | AI12: km/år | AJ12: 1699019.2 | AK12: kørselstype | AM12: Bybusser, provins/forstad | AN12: rutekm | AO12: km/år | AP12: 546820.595 | AQ12: kørselstype | AS12: Bybusser, provins/forstad | AT12: rutekm | AU12: km/år | AV12: 546820.595 | AW12: kørselstype | AY12: Bybusser, provins/forstad | AZ12: rutekm | BA12: km/år | BB12: 372409.56 | BC12: rutekm | BD12: km/år | BE12: 372409.56 | BF12: kørselstype | BH12: Bybusser, provins/forstad | BI12: kørselstype | BK12: Landevejsbusser | BL12: rutekm | BM12: km/år | BN12: 1756728.048 | BO12: kørselstype | BQ12: Landevejsbusser | BR12: rutekm | BS12: km/år | BT12: 1756728.048 | BU12: kørselstype | BW12: Landevejsbusser | BX12: rutekm | BY12: km/år | BZ12: 1378853.998 | CA12: rutekm | CB12: km/år | CC12: 1378853.998 | CD12: kørselstype | CF12: Landevejsbusser
A13: kontraktlængde (afskrivning) | B13: år | C13: 12 | D13: kørselstype | F13: Bybusser, provins/forstad | G13: kontraktlængde (afskrivning) | H13: år | I13: 12 | J13: kørselstype | L13: Bybusser, provins/forstad | M13: kontraktlængde (afskrivning) | N13: år | O13: 12 | P13: kørselstype | R13: Bybusser, København | S13: kontraktlængde (afskrivning) | T13: år | U13: 12 | V13: kørselstype | X13: Bybusser, København | Y13: kontraktlængde (afskrivning) | Z13: år | AA13: 12 | AB13: kørselstype | AD13: Bybusser, København | AE13: kontraktlængde (afskrivning) | AF13: år | AG13: 12 | AH13: kørselstype | AJ13: Bybusser, København | AK13: kontraktlængde (afskrivning) | AL13: år | AM13: 12 | AN13: kørselstype | AP13: Bybusser, provins/forstad | AQ13: kontraktlængde (afskrivning) | AR13: år | AS13: 12 | AT13: kørselstype | AV13: Bybusser, provins/forstad | AW13: kontraktlængde (afskrivning) | AX13: år | AY13: 12 | AZ13: tomkørsel | BA13: % | BB13: 0.05118155399 | BC13: tomkørsel | BD13: % | BE13: 0.05118155399 | BF13: kontraktlængde (afskrivning) | BG13: år | BH13: 12 | BI13: kontraktlængde (afskrivning) | BJ13: år | BK13: 12 | BL13: kørselstype | BN13: Landevejsbusser | BO13: kontraktlængde (afskrivning) | BP13: år | BQ13: 12 | BR13: kørselstype | BT13: Landevejsbusser | BU13: kontraktlængde (afskrivning) | BV13: år | BW13: 8 | BX13: tomkørsel | BY13: % | BZ13: 0.056 | CA13: tomkørsel | CB13: % | CC13: 0.056 | CD13: kontraktlængde (afskrivning) | CE13: år | CF13: 8
A14: projektlængde | B14: år | C14: 12 | D14: kontraktlængde (afskrivning) | E14: år | F14: 12 | G14: projektlængde | H14: år | I14: 12 | J14: kontraktlængde (afskrivning) | K14: år | L14: 12 | M14: projektlængde | N14: år | O14: 12 | P14: kontraktlængde (afskrivning) | Q14: år | R14: 12 | S14: projektlængde | T14: år | U14: 12 | V14: kontraktlængde (afskrivning) | W14: år | X14: 12 | Y14: projektlængde | Z14: år | AA14: 12 | AB14: kontraktlængde (afskrivning) | AC14: år | AD14: 12 | AE14: projektlængde | AF14: år | AG14: 12 | AH14: kontraktlængde (afskrivning) | AI14: år | AJ14: 12 | AK14: projektlængde | AL14: år | AM14: 12 | AN14: kontraktlængde (afskrivning) | AO14: år | AP14: 12 | AQ14: projektlængde | AR14: år | AS14: 12 | AT14: kontraktlængde (afskrivning) | AU14: år | AV14: 12 | AW14: projektlængde | AX14: år | AY14: 12 | AZ14: kørselstype | BB14: Bybusser, provins/forstad | BC14: kørselstype | BE14: Bybusser, provins/forstad | BF14: projektlængde | BG14: år | BH14: 12 | BI14: projektlængde | BJ14: år | BK14: 12 | BL14: kontraktlængde (afskrivning) | BM14: år | BN14: 12 | BO14: projektlængde | BP14: år | BQ14: 12 | BR14: kontraktlængde (afskrivning) | BS14: år | BT14: 12 | BU14: projektlængde | BV14: år | BW14: 8 | BX14: kørselstype | BZ14: Landevejsbusser | CA14: kørselstype | CC14: Landevejsbusser | CD14: projektlængde | CE14: år | CF14: 8
A15: køreplanstimer | B15: t/år | C15: 62986 | D15: projektlængde | E15: år | F15: 12 | G15: køreplanstimer | H15: t/år | I15: 62986 | J15: projektlængde | K15: år | L15: 12 | M15: køreplanstimer | N15: t/år | O15: 88457 | P15: projektlængde | Q15: år | R15: 12 | S15: køreplanstimer | T15: t/år | U15: 88457 | V15: projektlængde | W15: år | X15: 12 | Y15: køreplanstimer | Z15: t/år | AA15: 77073 | AB15: projektlængde | AC15: år | AD15: 12 | AE15: køreplanstimer | AF15: t/år | AG15: 77073 | AH15: projektlængde | AI15: år | AJ15: 12 | AK15: køreplanstimer | AL15: t/år | AM15: 21037 | AN15: projektlængde | AO15: år | AP15: 12 | AQ15: køreplanstimer | AR15: t/år | AS15: 21037 | AT15: projektlængde | AU15: år | AV15: 12 | AW15: køreplanstimer | AX15: t/år | AY15: 14288 | AZ15: kontraktlængde (afskrivning) | BA15: år | BB15: 12 | BC15: kontraktlængde (afskrivning) | BD15: år | BE15: 12 | BF15: køreplanstimer | BG15: t/år | BH15: 14288 | BI15: køreplanstimer | BJ15: t/år | BK15: 61690 | BL15: projektlængde | BM15: år | BN15: 12 | BO15: køreplanstimer | BP15: t/år | BQ15: 61690 | BR15: projektlængde | BS15: år | BT15: 12 | BU15: køreplanstimer | BV15: t/år | BW15: 43362 | BX15: kontraktlængde (afskrivning) | BY15: år | BZ15: 8 | CA15: kontraktlængde (afskrivning) | CB15: år | CC15: 8 | CD15: køreplanstimer | CE15: t/år | CF15: 43362
A16: drivmiddel | C16: Elbus, depot | D16: køreplanstimer | E16: t/år | F16: 62986 | G16: drivmiddel | I16: HVO | J16: køreplanstimer | K16: t/år | L16: 62986 | M16: drivmiddel | O16: Elbus, endestation | P16: køreplanstimer | Q16: t/år | R16: 88457 | S16: drivmiddel | U16: HVO | V16: køreplanstimer | W16: t/år | X16: 88457 | Y16: drivmiddel | AA16: Elbus, depot | AB16: køreplanstimer | AC16: t/år | AD16: 77073 | AE16: drivmiddel | AG16: HVO | AH16: køreplanstimer | AI16: t/år | AJ16: 77073 | AK16: drivmiddel | AM16: Elbus, depot | AN16: køreplanstimer | AO16: t/år | AP16: 21037 | AQ16: drivmiddel | AS16: HVO | AT16: køreplanstimer | AU16: t/år | AV16: 21037 | AW16: drivmiddel | AY16: Elbus, depot | AZ16: projektlængde | BA16: år | BB16: 12 | BC16: projektlængde | BD16: år | BE16: 12 | BF16: drivmiddel | BH16: HVO | BI16: drivmiddel | BK16: Elbus, depot | BL16: køreplanstimer | BM16: t/år | BN16: 61690 | BO16: drivmiddel | BQ16: HVO | BR16: køreplanstimer | BS16: t/år | BT16: 61690 | BU16: drivmiddel | BW16: Elbus, depot | BX16: projektlængde | BY16: år | BZ16: 8 | CA16: projektlængde | CB16: år | CC16: 8 | CD16: drivmiddel | CF16: HVO
A17: bus, driftsbusser, antal | B17: stk. | C17: 17 | D17: drivmiddel | F17: Elbus, depot | G17: bus, driftsbusser, antal | H17: stk. | I17: 17 | J17: drivmiddel | L17: HVO | M17: bus, driftsbusser, antal | N17: stk. | O17: 18 | P17: drivmiddel | R17: Elbus, endestation | S17: bus, driftsbusser, antal | T17: stk. | U17: 18 | V17: drivmiddel | X17: HVO | Y17: bus, driftsbusser, antal | Z17: stk. | AA17: 23 | AB17: drivmiddel | AD17: Elbus, depot | AE17: bus, driftsbusser, antal | AF17: stk. | AG17: 23 | AH17: drivmiddel | AJ17: HVO | AK17: bus, driftsbusser, antal | AL17: stk. | AM17: 5 | AN17: drivmiddel | AP17: Elbus, depot | AQ17: bus, driftsbusser, antal | AR17: stk. | AS17: 5 | AT17: drivmiddel | AV17: HVO | AW17: bus, driftsbusser, antal | AX17: stk. | AY17: 3 | AZ17: køreplanstimer | BA17: t/år | BB17: 14288 | BC17: køreplanstimer | BD17: t/år | BE17: 14288 | BF17: bus, driftsbusser, antal | BG17: stk. | BH17: 3 | BI17: bus, driftsbusser, antal | BJ17: stk. | BK17: 16 | BL17: drivmiddel | BN17: Elbus, depot | BO17: bus, driftsbusser, antal | BP17: stk. | BQ17: 16 | BR17: drivmiddel | BT17: HVO | BU17: bus, driftsbusser, antal | BV17: stk. | BW17: 13 | BX17: køreplanstimer | BY17: t/år | BZ17: 43362 | CA17: køreplanstimer | CB17: t/år | CC17: 43362 | CD17: bus, driftsbusser, antal | CE17: stk. | CF17: 13
A18: Anvendte brugerværdier, dieselreference | D18: bus, driftsbusser, antal | E18: stk. | F18: 17 | G18: klimaanlæg | I18: ja | J18: bus, driftsbusser, antal | K18: stk. | L18: 17 | M18: klimaanlæg | O18: ja | P18: bus, driftsbusser, antal | Q18: stk. | R18: 18 | S18: klimaanlæg | U18: ja | V18: bus, driftsbusser, antal | W18: stk. | X18: 18 | Y18: klimaanlæg | AA18: ja | AB18: bus, driftsbusser, antal | AC18: stk. | AD18: 23 | AE18: klimaanlæg | AG18: ja | AH18: bus, driftsbusser, antal | AI18: stk. | AJ18: 23 | AK18: klimaanlæg | AM18: ja | AN18: bus, driftsbusser, antal | AO18: stk. | AP18: 5 | AQ18: klimaanlæg | AS18: nej | AT18: bus, driftsbusser, antal | AU18: stk. | AV18: 5 | AW18: klimaanlæg | AY18: ja | AZ18: drivmiddel | BB18: Elbus, depot | BC18: drivmiddel | BE18: HVO | BF18: klimaanlæg | BH18: nej | BI18: klimaanlæg | BK18: ja | BL18: bus, driftsbusser, antal | BM18: stk. | BN18: 16 | BO18: klimaanlæg | BQ18: nej | BR18: bus, driftsbusser, antal | BS18: stk. | BT18: 16 | BU18: klimaanlæg | BW18: ja | BX18: drivmiddel | BZ18: Elbus, depot | CA18: drivmiddel | CC18: HVO | CD18: klimaanlæg | CF18: nej
D19: bus, total, antal | E19: stk. | F19: 20 | G19: Anvendte brugerværdier, dieselreference | J19: klimaanlæg | L19: ja | M19: Anvendte brugerværdier, dieselreference | P19: bus, total, antal | Q19: stk. | R19: 21 | S19: Anvendte brugerværdier, dieselreference | V19: klimaanlæg | X19: ja | Y19: Anvendte brugerværdier, dieselreference | AB19: bus, total, antal | AC19: stk. | AD19: 27 | AE19: Anvendte brugerværdier, dieselreference | AH19: klimaanlæg | AJ19: ja | AK19: Anvendte brugerværdier, dieselreference | AN19: bus, total, antal | AO19: stk. | AP19: 8 | AQ19: Anvendte brugerværdier, dieselreference | AT19: Anvendte brugerværdier, dieselreference | AW19: Anvendte brugerværdier, dieselreference | AZ19: bus, driftsbusser, antal | BA19: stk. | BB19: 3 | BC19: bus, driftsbusser, antal | BD19: stk. | BE19: 3 | BF19: Anvendte brugerværdier, dieselreference | BI19: Anvendte brugerværdier, dieselreference | BL19: bus, total, antal | BM19: stk. | BN19: 22 | BO19: Anvendte brugerværdier, dieselreference | BR19: klimaanlæg | BT19: nej | BU19: Anvendte brugerværdier, dieselreference | BX19: bus, driftsbusser, antal | BY19: stk. | BZ19: 13 | CA19: bus, driftsbusser, antal | CB19: stk. | CC19: 13 | CD19: Anvendte brugerværdier, dieselreference
D20: klimaanlæg | F20: ja | J20: Anvendte brugerværdier, dieselreference | P20: klimaanlæg | R20: ja | V20: Anvendte brugerværdier, dieselreference | AB20: klimaanlæg | AD20: ja | AE20: klimaanlæg | AG20: ja | AH20: Anvendte brugerværdier, dieselreference | AK20: klimaanlæg | AM20: nej | AN20: Anvendte brugerværdier, dieselreference | AQ20: klimaanlæg | AS20: nej | AT20: klimaanlæg | AV20: nej | AW20: klimaanlæg | AY20: nej | AZ20: bus, total, antal | BA20: stk. | BB20: 5 | BC20: klimaanlæg | BE20: nej | BF20: klimaanlæg | BH20: nej | BI20: klimaanlæg | BK20: nej | BL20: klimaanlæg | BN20: ja | BO20: klimaanlæg | BQ20: nej | BR20: Anvendte brugerværdier, dieselreference | BU20: buslængde | BW20: 9-11,8 | BX20: bus, total, antal | BY20: stk. | BZ20: 17 | CA20: klimaanlæg | CC20: nej | CD20: buslængde | CF20: 9-11,8
D21: Anvendte brugerværdier, dieselreference | J21: klimaanlæg | L21: ja | P21: Anvendte brugerværdier, dieselreference | V21: klimaanlæg | X21: ja | AB21: Anvendte brugerværdier, dieselreference | AH21: klimaanlæg | AJ21: ja | AN21: klimaanlæg | AP21: nej | AZ21: Anvendte brugerværdier, dieselreference | BC21: Anvendte brugerværdier, dieselreference | BL21: Anvendte brugerværdier, dieselreference | BR21: buslængde | BT21: 11,9-12,8 | BU21: klimaanlæg | BW21: nej | BX21: klimaanlæg | BZ21: ja | CA21: Anvendte brugerværdier, dieselreference | CD21: klimaanlæg | CF21: nej
D22: klimaanlæg | F22: ja | P22: klimaanlæg | R22: ja | AB22: klimaanlæg | AD22: ja | AZ22: klimaanlæg | BB22: nej | BC22: klimaanlæg | BE22: nej | BL22: buslængde | BN22: 11,9-12,8 | BR22: klimaanlæg | BT22: nej | BX22: Anvendte brugerværdier, dieselreference | CA22: buslængde | CC22: 9-11,8
BL23: klimaanlæg | BN23: nej | BX23: buslængde | BZ23: 9-11,8 | CA23: klimaanlæg | CC23: nej
BX24: klimaanlæg | BZ24: nej

Sheet BEREGNINGSARK
A1: RUTEDATA
A2: buslinje/kontraktenhed | C2: =BusLinVær -> A16, Roskilde
A3: buslængde | C3: =buslægdeØ -> 11,9-12,8 | D3: =IF(buslægdeRef>0,buslægdeRef,BusLænrefStan) -> 11,9-12,8 | G3: Indtastet værdi
A4: rutekm | B4: km/år | C4: =IF(RutKmØnsVær>0,RutKmØnsVær,RutKmØnsStan) -> 1343192.744 | D4: =IF(RutKmRefVær>0,RutKmRefVær,RutKmRefStan) -> 1343192.744 | G4: Beregninget værdi
A5: årskørsel | B5: km/bus/år | C5: =kmÅrØnsStan -> 75218.79366 | D5: =kmÅrRefStan -> 79177.67754 | G5: Summeret budgetpost (beregnet værdi)
A6: tomkørsel | B6: % | C6: =IF(TomKmVær>0,TomKmVær,TomKmStan) -> 0.12 | G6: Total omkostning per år
A7: kørselstype | C7: =kørselØ -> Landevejsbusser
A8: kontraktlængde (afskrivning) | B8: år | C8: =kontraktlængdeØ -> 12 | D8: =IF(kontraktlængdeRef>0,kontraktlængdeRef,KonLænRef) -> 12
A9: projektlængde | B9: år | C9: =ProjLæn -> 12
A10: køreplanstimer | B10: t/år | C10: =TimÅrØns -> 62986 | D10: =IF(TimÅrRef>0,TimÅrRef,TimÅrRefStan) -> 62986
A11: rente | B11: % pa | C11: =IF(RentePAVær<>"",RentePAVær,RentePAStand) -> 0.02 | D11: =RentePAStand -> 0.02
A12: drivmiddel | C12: =drivmiddel -> Elbus, depot | D12: DIESEL
A13: BUSMATERIEL
A14: bus, driftsbusser, antal | B14: stk. | C14: =DriBusVær -> 17
A15: bus, total, antal | B15: stk. | C15: =IF(busantalØ>0,busantalØ,BusAntStan) -> 20 | D15: =IF(busantalRef>0,busantalRef,BusAntRefStan) -> 19
A16: bus, pris | B16: kr./bus | C16: =IF(BusØnsPrisVær>0,BusØnsPrisVær,BusØnsPrisRef) -> 3175000 | D16: =IF(BusrefPrisVær>0,BusrefPrisVær,BusRefPrisStand) -> 1675000
A17: klimaanlæg | C17: =IF(KlimaØnsVærd<>"",KlimaØnsVærd,KlimaØnsStand) -> ja | D17: =IF(klimaRef="ja",klimaRef,IF(klimaRef="nej",klimaRef,KlimaRefStand)) -> ja
A18: moms | B18: kr./bus | C18: =0.25*C16 -> 793750 | D18: =0.25*D16 -> 418750
A19: momsfradrag | B19: kr./bus | C19: =-IF(MomsFradrVær>0,MomsFradrVær,MomsFradStand)*C18 -> -396875 | D19: =-IF(MomsFradrVær>0,MomsFradrVær,MomsFradStand)*D18 -> -209375
A20: busser, investering | B20: kr. | C20: =(BusPriØns+BusMomØns+BusMomFraØns)*BusAnt -> 71437500 | D20: =(BusPriRef++BusMomref+BusMomFraRef)*BusAntRef -> 35803125
A21: ydelse | B21: kr./år | C21: =-PMT(C11,C8,C20) -> 6755101.184 | D21: =-PMT($D11,$D8,$D20) -> 3385529.058
A22: restværdi | B22: kr./bus | C22: =-IF(RestØnsVær>0,RestØnsVær,RestØnsStand) -> -279375 | D22: =-IF(RestRefVær>0,RestRefVær,RestRefStand) -> -41875
A23: restværdi | B23: kr./år | C23: =C15*C22/C8 -> -465625 | D23: =D15*D22/D8 -> -66302.08333
A24: forsikring | B24: kr./år/bus | C24: =IF(ForsØnsVær>0,ForsØnsVær,ForsØnsStand) -> 38100 | D24: =IF(ForsRefVær>0,ForsRefVær,ForsRefStand) -> 20100
A25: forsikring | B25: kr./år | C25: =C15*C24 -> 762000 | D25: =D15*D24 -> 381900
A26: batteriudskiftning | B26: kr./bus | C26: =IF(OR(drivmiddel=ElDep,drivmiddel=ElBy),IF(BatUdVær>0,BatUdVær,BatUdStand),0) -> 600000
A27: batteriudskiftning | B27: kr./år | C27: =C15*C26/C8 -> 1000000
A28: LADE-/FYLDESTATION, DEPOT
A29: ladere, effekt | B29: kW | C29: =IF(OR(drivmiddel=ElDep,drivmiddel=ElBy),IF(kWdepVær>0,kWdepVær,kWdepStand),0) -> 150 (2*75)
A30: ladere | B30: stk. | C30: =IF(OR(drivmiddel=ElDep,drivmiddel=ElBy),IF(nLadDepVær>0,nLadDepVær,nLadDepStand),0) -> 9
A31: lader, pris | B31: kr./stk. | C31: =IF(DepPrisVær>0,DepPrisVær,DepPrisStand) -> 440000
A32: ladere, investering | B32: kr. | C32: =C30*C31 -> 3960000
A33: 1. lader, installation | B33: kr./lader | C33: =IF(DepIns1LadVær>0,DepIns1LadVær,DepIns1LadStan) -> 234000
A34: 2. lader, installation | B34: kr./lader | C34: =IF(DepIns2LadVær>0,DepIns2LadVær,DepIns2LadStan) -> 139000
A35: installation, ladere | B35: kr. | C35: =C33+(C30-1)*C34 -> 1346000
A36: nettilslutning | B36: Amp. | C36: =IF(DepLadEffVær>0,DepLadEffVær,DepLadEffStan) -> 2016
A37: nettilslutning | B37: kr./Amp. | C37: =IF(AmpPrisVær>0,AmpPrisVær,AmpPrisStand) -> 1000
A38: nettilslutning | B38: kr. | C38: =DepLadEff*C37 -> 2016000
A39: pris, anlæg | B39: kr. | C39: =C32+C35+C38 -> 7322000
A40: moms | B40: kr. | C40: =0.25*C39 -> 1830500
A41: momsfradrag | B41: kr. | C41: =-IF(MomsFradrVær>0,MomsFradrVær,MomsFradStand)*C40 -> -915250
A42: ladere, depot, ydelse | B42: kr./år | C42: =IF(OR(drivmiddel=ElDep,drivmiddel=ElBy),-PMT(C11,C8,(SUM(C39:C41))),0) -> 778911.0373
A43: lader, service | B43: kr./stk./år | C43: =IF(DepSerVær>0,DepSerVær,DepSerStan) -> 4000
A44: lader, service | B44: kr./år | C44: =IF(OR(drivmiddel=ElDep,drivmiddel=ElBy),DepLadStk*C43,0) -> 36000
A45: ladetab | B45: % | C45: =IF(LadTabVær>0,LadTabVær,LadTabStan) -> 0.05
A46: LADESTATION, BYRUM
A47: ladestation, byrum, effekt | B47: kW | C47: =IF(kWbyVær>0,kWbyVær,kWbyStan) -> 0
A48: ladestation, byrum | B48: stk. | C48: =IF(nLadByVær>0,nLadByVær,nLadByStand) -> 4
A49: ladestation, byrum | B49: kr./stk. | C49: =IF(ByPrisVær>0,ByPrisVær,ByPrisStand) -> 
A50: ladestation, byrum, investering | B50: kr. | C50: =C48*C49 -> 
A51: ladestation, ydelse | B51: kr./år | C51: =IF(drivmiddel=ElBy,-PMT(C11,C8,C50),0) -> 0
A52: ladestation, service | B52: kr./lader/år | C52: =IF(drivmiddel=ElBy,IF(BySerVær>0,BySerVær,BySerStand),0) -> 0
A53: ladestation, service | B53: kr./år | C53: =IF(drivmiddel=ElBy,C48*C52,0) -> 0
A54: DRIVMIDDEL
A55: el, pris (inkl. moms) | B55: kr./kWh | C55: =IF(ElVærd>0,ElVærd,ElStand) -> 0.8
A56: el, forbrug | B56: km/kWh | C56: =IF(ØnsForBrVæ>0,ØnsForBrVæ,ØnsForStand)*(1+LadTab) -> 1.388625
A57: el, forbrug | B57: kWh/år | C57: =BusAnt*kmÅrØns*ForEl -> 2089013.947
A58: el, omkostning (inkl. moms) | B58: kr./år | C58: =IF(OR(drivmiddel=ElDep,drivmiddel=ElBy),C57*C55,0) -> 1671211.158
A59: HVO-forbrug, opvarmning | B59: l/km | C59: =IF(OR(drivmiddel=ElDep,drivmiddel=ElBy),IF(ForOpvVær>0,ForOpvVær,ForOpvStand),0) -> 0.01666666667
A60: HVO-forbrug, opvarmning | B60: l/år | C60: =BusAnt*HVOkmOpv*kmÅrØns -> 25072.93122
A61: HVO-forbrug, opvarmning | B61: kr./år | C61: =IF(ISNUMBER(C60),C60*PriHVO,0) -> 338484.5715
A62: diesel, pris (inkl. moms) | B62: kr./l | D62: =IF(DieselVær>0,DieselVær,DieselStand) -> 8
A63: diesel, forbrug | B63: km/l | C63: =INDEX((FORB_BY_PROV,FORB_BY_KØB,FORB_LAND),MATCH(buslægdeØ,BUSLÆNGDE,0),5,MATCH(kørselØ,KØRSELSTYPE,0)) -> 3.7 | D63: =IF(RefForBrVæ>0,RefForBrVæ,RefForStand) -> 3.7
A64: diesel, forbrug | B64: l/år | C64: =BusAnt*kmÅrØns/DieForØns -> 406588.0739 | D64: =BusAntRef*kmÅrRef/D63 -> 406588.0739
A65: diesel, omkostning (inkl. moms) | B65: kr./år | D65: =D64*D62 -> 3252704.591
A66: HVO, pris (inkl. moms) | B66: kr./l | C66: =IF(HVOVær>0,HVOVær,HVOStand) -> 13.5
A67: HVO, forbrug | B67: km/l | C67: =IF(ØnsForBrVæ>0,ØnsForBrVæ,ØnsForStand) -> 1.3225
A68: HVO, forbrug | B68: l/år | C68: =BusAnt*kmÅrØns/ForHVO -> 1137524.29
A69: HVO, omkostning (inkl. moms) | B69: kr./år | C69: =IF(drivmiddel=HVO,PriHVO*C68,0) -> 0
A70: CNG m bionaturgascertifikat, pris (inkl. moms) | B70: kr./Nm3 | C70: =IF(BioVær>0,BioVær,BioStand) -> 7.5
A71: CNG m bionaturgascertifikat, forbrug | B71: km/Nm3 | C71: =IF(ØnsForBrVæ>0,ØnsForBrVæ,ØnsForStand) -> 1.3225
A72: CNG m bionaturgascertifikat, forbrug | B72: Nm3/år | C72: =BusAnt*kmÅrØns/C71 -> 1137524.29
A73: CNG m bionaturgascertifikat, omkostning (inkl. moms) | B73: kr./år | C73: =IF(drivmiddel=Biogas,BEREGNINGSARK!C72*BEREGNINGSARK!C70,0) -> 0
A74: ADDITIV
A75: AdBlue | B75: =B66 -> kr./l | C75: =IF(AdBluVær>0,AdBluVær,AdBluStan) -> 2 | D75: =IF(AdBluVær>0,AdBluVær,AdBluStan) -> 2
A76: AdBlueforbrug af dieselforbrug (km/l) | B76: % | C76: =IF(AdBluForVær>0,AdBluForVær,AdBluForStan) -> 0.07 | D76: =IF(AdBluForVær>0,AdBluForVær,AdBluForStan) -> 0.07
A77: AdBlue | B77: l/år | C77: =C64*C76 -> 28461.16517 | D77: =D64*D76 -> 28461.16517
A78: AdBlue | B78: kr./år | C78: =IF(AND(drivmiddel<>ElDep,drivmiddel<>ElBy),C77*C75,0) -> 0 | D78: =D77*D75 -> 56922.33034
A79: OLIE
A80: Olie | B80: kr/l | C80: =IF(OliPriVær>0,OliPriVær,OliPriStan) -> 63 | D80: =IF(OliPriVær>0,OliPriVær,OliPriStan) -> 63
A81: Olieforbrug af dieselforbrug (km/l) | B81: % | C81: =IF(OliForVær>0,OliForVær,OliForStan) -> 0.002 | D81: =IF(OliForVær>0,OliForVær,OliForStan) -> 0.002
A82: Olie | B82: l/år | C82: =C81*C64 -> 813.1761477 | D82: =D81*D64 -> 813.1761477
A83: Olie | B83: kr/år | C83: =IF(AND(drivmiddel<>ElDep,drivmiddel<>ElBy),C82*C80,0) -> 0 | D83: =D82*D80 -> 51230.09731
A84: DÆK
A85: Dæk levetid | B85: km | C85: =D85 -> 100000 | D85: =IF(DækLevVær>0,DækLevVær,DækLevStand) -> 100000
A86: Pris pr. dæk | B86: kr./stk. | C86: =D86 -> 2500 | D86: =IF(DækPriVær>0,DækPriVær,DækPriStan) -> 2500
A87: dæk/køretøj | B87: stk. | C87: =INDEX(nDæk,MATCH(buslægdeØ,BUSLÆNGDE,0)) -> 6 | D87: =INDEX(nDæk,MATCH(BusLænRef,BUSLÆNGDE,0)) -> 6
A88: Årligt dækforbrug/bus | B88: % | C88: =C5/C85 -> 0.7521879366 | D88: =D5/D85 -> 0.7917767754
A89: Dæk | B89: kr./år | C89: =BusAnt*C86*C87*C88 -> 225656.381 | D89: =BusAntRef*D86*D87*D88 -> 225656.381
A90: SERVICE
A91: service | B91: kr./km | C91: =IF(SerØnsVær>0,SerØnsVær,SerØnsStan) -> 1.44 | D91: =IF(SerRefVær>0,SerRefVær,SerRefStan) -> 1.6
A92: service | B92: kr./år | C92: =BusAnt*C91*C5 -> 2166301.258 | D92: =BusAntRef*D91*D5 -> 2407001.397
A93: skader | B93: kr./bus/år | C93: =IF(SkaØnsVær>0,SkaØnsVær,SkaØnsStan) -> 15043.75873 | D93: =IF(SkaRefVær>0,SkaRefVær,SkaRefStan) -> 15835.53551
A94: skader | B94: kr./år | C94: =BusAnt*SkaBusØns -> 300875.1747 | D94: =BusAntRef*SkaBusRef -> 300875.1747
A95: CHAUFFØRLØN
A96: chaufførløn | B96: kr./driftstime | C96: =IF(ChalønVær>0,ChalønVær,ChaLønStan) -> 400 | D96: =IF(ChalønVær>0,ChalønVær,ChaLønStan) -> 400
A97: chaufførløn | B97: kr./år | C97: =C10*C96 -> 25194400 | D97: =D10*D96 -> 25194400
A98: SAMLET
A99: samlet årlig omkostning | B99: kr./år | C99: =BusYdeØns+ResVærØns+ForPriØns+BatUdsPri+LadDepPri+LadDepSer+LadByPri+LadBySer+ElPriØns+HVOOpvØns+HVOPriØns+CNGPriØns+AddPriØns+OliPriØns+DækPriØns+SerPriØns+SkaBusÅrØns+ChaPriØns -> 38763315.76 | D99: =BusYdeRef+ResVærRef+ForPriRef+DiePriRef+AddPriRef+OliPriRef+DækPriRef+SerPriRef+SkaBusÅrRef+ChaPriRef -> 35189916.95
A100: MERPRIS
A101: merpris for ønsket løsning | B101: kr./år | C101: =C99-D99 -> 3573398.817
A102: merpris for ønsket løsning | B102: kr. i projektperiode | C102: =C9*C101 -> 42880785.81
A103: støtteberettiget beløb | B103: 75% af merpris | C103: =0.75*MerPrisPer -> 32160589.36
A104: egenfinansiering | B104: 25% af merpris | C104: =0.25*MerPrisPer -> 10720196.45

Sheet LISTER (hidden)
A1: KØRSELSTYPE | C1: ØNSKET LØSNING | F1: BUSLÆNGDE | H1: KLIMAANLÆG | K1: LADEEFFEKT, DEPOT | M1: LADEEFFEKT, BYRUM
A2: Bybusser, provins/forstad | C2: HVO | D2: km/l | F2: 9-11,8 | H2: ja | K2: 50 | M2: 150
A3: Bybusser, København | C3: Elbus, depot | D3: kWh/km | F3: 11,9-12,8 | H3: nej | K3: 60 (2*30) | M3: 300
A4: Landevejsbusser | C4: Elbus, endestation | D4: kWh/km | F4: 12,9-13,2 | K4: 80 | M4: 450
C5: Biogas | D5: km/Nm3 | F5: 13,7 | K5: 150 (2*75)
F6: 14,5-15
F7: 18-18,8

Sheet INPUT_DATA
A1: AFSKRIVNING
A2: år | B2: 1 | C2: 2 | D2: 3 | E2: 4 | F2: 5 | G2: 6 | H2: 7 | I2: 8 | J2: 9 | K2: 10 | L2: 11 | M2: 12 | N2: 13 | O2: 14 | P2: 15
A3: bus | B3: 0.64 | C3: 0.55 | D3: 0.475 | E3: 0.39 | F3: 0.3 | G3: 0.22 | H3: 0.16 | I3: 0.1 | J3: 0.06 | K3: 0.05 | L3: 0.04 | M3: 0.025 | N3: 0.01 | O3: 0 | P3: 0
A4: batteri | B4: 0 | C4: 0 | D4: 0 | E4: 0 | F4: 0 | G4: 0 | H4: 0 | I4: 0 | J4: =5/6 -> 0.8333333333 | K4: =4/6 -> 0.6666666667 | L4: =3/6 -> 0.5 | M4: =2/6 -> 0.3333333333 | N4: =1/6 -> 0.1666666667 | O4: 0 | P4: 0
A6: BATTERIUDSKIFTNING
A7: år+ | B7: 8 | C7: 9-11,8 | D7: 11,9-12,8 | E7: 12,9-13,2 | F7: 13.7 | G7: 14,5-15 | H7: 18-18,8
A8: kWh | B8: 800000 | C8: 600000 | D8: 600000 | E8: 600000 | F8: 675000 | G8: 675000 | H8: 750000
A10: BUSPRIS, EKSKL. MOMS | D10: 300 kW | G10: 450 kW
A11: BUSLÆNGDE | B11: HVO | C11: Elbus, depot | D11: Elbus, endestation | E11: Biogas | F11: Klimaanlæg | G11: Tillæg til elbus, endestation
A12: 9-11,8 | B12: 1600000 | C12: 3100000 | D12: 3100000 | E12: =B12+250000 -> 1850000 | F12: 75000 | G12: 200000
A13: 11,9-12,8 | B13: 1600000 | C13: 3100000 | D13: 3100000 | E13: 1850000 | F13: 75000 | G13: 200000
A14: 12,9-13,2 | B14: 1800000 | C14: 3400000 | D14: 3400000 | E14: 2050000 | F14: 75000 | G14: 200000
A15: 13.7 | B15: 2000000 | C15: 3800000 | D15: 3800000 | E15: 2250000 | F15: 75000 | G15: 200000
A16: 14,5-15 | B16: 2100000 | C16: 4000000 | D16: 4000000 | E16: 2350000 | F16: 75000 | G16: 200000
A17: 18-18,8 | B17: 2300000 | C17: 4500000 | D17: 4500000 | E17: 2550000 | F17: 75000 | G17: 200000
A20: FORSIKRING, % NYPRIS PER ÅR
A21: 0.012
A23: PRIS, DEPOTLADERE, EKSKL. MOMS
A24: kW | B24: PRIS | C24: INSTALLATION | E24: AMPERE | F24: PRIS AMPERE | G24: SERVICE | H24: LADERE
C25: FØRSTE | D25: EFTERFØLGENDE | H25: stk.
A26: 50 | B26: 250000 | C26: =155000 -> 155000 | D26: =85000 -> 85000 | E26: 80 | F26: =E26*1000 -> 80000 | G26: 2000 | H26: 1
A27: 60 (2*30) | B27: 285000 | C27: =175000 -> 175000 | D27: =90000 -> 90000 | E27: 100 | F27: =E27*1000 -> 100000 | G27: 3000 | H27: 0.5
A28: 80 | B28: 285000 | C28: =175000 -> 175000 | D28: =90000 -> 90000 | E28: 125 | F28: 125000 | G28: 3000 | H28: 1
A29: 150 (2*75) | B29: 440000 | C29: =234000 -> 234000 | D29: =139000 -> 139000 | E29: 224 | F29: 224000 | G29: 4000 | H29: 0.5
A31: AMPERE, PRIS , kr./Amp., ekskl. moms
A32: 1000
A34: LADETABt
B35: Depot | C35: By
A36: % | B36: 0.05 | C36: 0.05
A38: PRIS, BYRUMSLADERE
A39: kW | B39: PRIS, kr./stk., inkl. installation, inkl. moms | C39: SERVICE, kr./pr./stk | D39: Ladere/bus, 1+
A40: 150 | B40: 2792000 | C40: 91500 | D40: =1/6 -> 0.1666666667
A41: 300 | B41: 3114000 | C41: 91500
A42: 450 | B42: 3789000 | C42: 99000
A44: BYBUSSER, PROVINS | G44: KABINEVARME
A45: BUSLÆNGDE | B45: HVO | C45: Elbus, depot | D45: Elbus, endestation | E45: Biogas | F45: Diesel | G45: l HVO/km (depot)
A46: 9-11,8 | B46: =F46*0.96 -> 2.976 | C46: 1.1 | D46: 1.3 | E46: 2.6 | F46: 3.1 | G46: =0.019/0.96 -> 0.01979166667
A47: 11,9-12,8 | B47: 2.88 | C47: 1.15 | D47: 1.4 | E47: 2.5 | F47: 3 | G47: =0.02/0.96 -> 0.02083333333
A48: 12,9-13,2 | B48: 2.784 | C48: 1.2 | D48: 1.45 | E48: 2.4 | F48: 2.9 | G48: =0.022/0.96 -> 0.02291666667
A49: 13.7 | B49: 2.112 | C49: =1.2*1.25 -> 1.5 | D49: 1.75 | E49: 2.2 | F49: 2.2 | G49: =0.023/0.96 -> 0.02395833333
A50: 14,5-15 | B50: 2.016 | C50: =1.6 -> 1.6 | D50: 1.85 | E50: 2.1 | F50: 2.1 | G50: =0.024/0.96 -> 0.025
A51: 18-18,8 | B51: 1.824 | C51: 1.9 | D51: 2.2 | E51: 1.8 | F51: 1.9 | G51: =0.025/0.96 -> 0.02604166667
A53: BYBUSSER, KØBENAVN | G53: KABINEVARME
A54: BUSLÆNGDE | B54: HVO | C54: Elbus, depot | D54: Elbus, endestation | E54: Biogas | F54: Diesel | G54: l HVO/km (depot)
A55: 9-11,8 | B55: =F55*0.96 -> 2.88 | C55: 1.2 | D55: 1.4 | E55: 2.3 | F55: 3 | G55: =0.019/0.96 -> 0.01979166667
A56: 11,9-12,8 | B56: 2.784 | C56: 1.25 | D56: 1.5 | E56: 2.2 | F56: 2.9 | G56: =0.02/0.96 -> 0.02083333333
A57: 12,9-13,2 | B57: 2.688 | C57: 1.3 | D57: 1.55 | E57: 2.1 | F57: 2.8 | G57: =0.022/0.96 -> 0.02291666667
A58: 13.7 | B58: 1.92 | C58: 1.6 | D58: 1.85 | E58: 1.9 | F58: 2 | G58: =0.023/0.96 -> 0.02395833333
A59: 14,5-15 | B59: 1.824 | C59: 1.7 | D59: 2 | E59: 1.8 | F59: 1.9 | G59: =0.024/0.96 -> 0.025
A60: 18-18,8 | B60: 1.728 | C60: 2 | D60: 2.3 | E60: 1.5 | F60: 1.8 | G60: =0.025/0.96 -> 0.02604166667
A62: LANDEVEJSBUSSER | G62: KABINEVARME
A63: BUSLÆNGDE | B63: HVO | C63: Elbus, depot | D63: Elbus, endestation | E63: Biogas | F63: Diesel | G63: l HVO/km (depot)
A64: 9-11,8 | B64: =F64*0.96 -> 3.648 | C64: =115%*C46 -> 1.265 | D64: =115%*D46 -> 1.495 | E64: =E46*1.25 -> 3.25 | F64: 3.8 | G64: =0.8*0.019/0.96 -> 0.01583333333
A65: 11,9-12,8 | B65: 3.552 | C65: =115%*C47 -> 1.3225 | D65: 1.61 | E65: 3.15 | F65: 3.7 | G65: =0.8*0.02/0.96 -> 0.01666666667
A66: 12,9-13,2 | B66: 3.456 | C66: 1.38 | D66: 1.6675 | E66: =1.25*E48 -> 3 | F66: 3.6 | G66: =0.8*0.022/0.96 -> 0.01833333333
A67: 13.7 | B67: 2.688 | C67: 1.725 | D67: 2.0125 | E67: =1.25*E49 -> 2.75 | F67: 2.8 | G67: =0.8*0.023/0.96 -> 0.01916666667
A68: 14,5-15 | B68: 2.592 | C68: 1.84 | D68: 2.1275 | E68: =E50*1.25 -> 2.625 | F68: 2.7 | G68: =0.8*0.024/0.96 -> 0.02
A69: 18-18,8 | B69: 2.4 | C69: 2.185 | D69: 2.53 | E69: =1.25*E51 -> 2.25 | F69: 2.5 | G69: =0.8*0.025/0.96 -> 0.02083333333
A71: MOMSFRADRAG
A72: % | B72: 0.5
A74: 9-11,8 | B74: m | AA74: 11,9-12,8 | AQ74: 12,9-13,2 | BG74: 13.7 | BW74: 14,5-15 | CM74: 18-18,8
A75: Service | B75: 1 år | C75: 2 år | D75: 3 år | E75: 4 år | F75: 5 år | G75: 6 år | H75: 7 år | I75: 8 år | J75: 9 år | K75: 10 år | L75: 11 år | M75: 12 år | N75: 13 år | O75: 14 år | P75: 15 år | R75: 1 år | S75: 2 år | T75: 3 år | U75: 4 år | V75: 5 år | W75: 6 år | X75: 7 år | Y75: 8 år | Z75: 9 år | AA75: 10 år | AB75: 11 år | AC75: 12 år | AD75: 13 år | AE75: 14 år | AF75: 15 år | AH75: 1 år | AI75: 2 år | AJ75: 3 år | AK75: 4 år | AL75: 5 år | AM75: 6 år | AN75: 7 år | AO75: 8 år | AP75: 9 år | AQ75: 10 år | AR75: 11 år | AS75: 12 år | AT75: 13 år | AU75: 14 år | AV75: 15 år | AX75: 1 år | AY75: 2 år | AZ75: 3 år | BA75: 4 år | BB75: 5 år | BC75: 6 år | BD75: 7 år | BE75: 8 år | BF75: 9 år | BG75: 10 år | BH75: 11 år | BI75: 12 år | BJ75: 13 år | BK75: 14 år | BL75: 15 år | BN75: 1 år | BO75: 2 år | BP75: 3 år | BQ75: 4 år | BR75: 5 år | BS75: 6 år | BT75: 7 år | BU75: 8 år | BV75: 9 år | BW75: 10 år | BX75: 11 år | BY75: 12 år | BZ75: 13 år | CA75: 14 år | CB75: 15 år | CD75: 1 år | CE75: 2 år | CF75: 3 år | CG75: 4 år | CH75: 5 år | CI75: 6 år | CJ75: 7 år | CK75: 8 år | CL75: 9 år | CM75: 10 år | CN75: 11 år | CO75: 12 år | CP75: 13 år | CQ75: 14 år | CR75: 15 år
A76: HVO | B76: =S_11*R76 -> 0.72 | C76: 0.84 | D76: 0.94 | E76: 1.03 | F76: 1.11 | G76: 1.18 | H76: 1.25 | I76: 1.32 | J76: 1.39 | K76: 1.46 | L76: 1.53 | M76: 1.6 | N76: 1.7 | O76: 1.82 | P76: 1.97 | R76: =R80 -> 0.72 | S76: =S80 -> 0.84 | T76: 0.94 | U76: 1.03 | V76: 1.11 | W76: 1.18 | X76: 1.25 | Y76: 1.32 | Z76: 1.39 | AA76: 1.46 | AB76: 1.53 | AC76: 1.6 | AD76: 1.7 | AE76: 1.82 | AF76: 1.97 | AH76: =AH80 -> 0.72 | AI76: =AI80 -> 0.84 | AJ76: 0.94 | AK76: 1.03 | AL76: 1.11 | AM76: 1.18 | AN76: 1.25 | AO76: 1.32 | AP76: 1.39 | AQ76: 1.46 | AR76: 1.53 | AS76: 1.6 | AT76: 1.7 | AU76: 1.82 | AV76: 1.97 | AX76: =AX80 -> 0.828 | AY76: =AY80 -> 0.966 | AZ76: 1.081 | BA76: 1.1845 | BB76: 1.2765 | BC76: 1.357 | BD76: 1.4375 | BE76: 1.518 | BF76: 1.5985 | BG76: 1.679 | BH76: 1.7595 | BI76: 1.84 | BJ76: 1.955 | BK76: 2.093 | BL76: 2.2655 | BN76: =BN80 -> 0.828 | BO76: =BO80 -> 0.966 | BP76: 1.081 | BQ76: 1.1845 | BR76: 1.2765 | BS76: 1.357 | BT76: 1.4375 | BU76: 1.518 | BV76: 1.5985 | BW76: 1.679 | BX76: 1.7595 | BY76: 1.84 | BZ76: 1.955 | CA76: 2.093 | CB76: 2.2655 | CD76: =CD80 -> 0.864 | CE76: =CE80 -> 1.008 | CF76: 1.128 | CG76: 1.236 | CH76: 1.332 | CI76: 1.416 | CJ76: 1.5 | CK76: 1.584 | CL76: 1.668 | CM76: 1.752 | CN76: 1.836 | CO76: 1.92 | CP76: 2.04 | CQ76: 2.184 | CR76: 2.364
A77: Elbus, depot | B77: 0.648 | C77: 0.756 | D77: 0.846 | E77: 0.927 | F77: 0.999 | G77: 1.062 | H77: 1.125 | I77: 1.188 | J77: 1.251 | K77: 1.314 | L77: 1.377 | M77: 1.44 | N77: 1.53 | O77: 1.638 | P77: 1.773 | R77: =0.9*R80 -> 0.648 | S77: =0.9*S80 -> 0.756 | T77: 0.846 | U77: 0.927 | V77: 0.999 | W77: 1.062 | X77: 1.125 | Y77: 1.188 | Z77: 1.251 | AA77: 1.314 | AB77: 1.377 | AC77: 1.44 | AD77: 1.53 | AE77: 1.638 | AF77: 1.773 | AH77: =0.9*AH80 -> 0.648 | AI77: =0.9*AI80 -> 0.756 | AJ77: 0.846 | AK77: 0.927 | AL77: 0.999 | AM77: 1.062 | AN77: 1.125 | AO77: 1.188 | AP77: 1.251 | AQ77: 1.314 | AR77: 1.377 | AS77: 1.44 | AT77: 1.53 | AU77: 1.638 | AV77: 1.773 | AX77: =0.9*AX80 -> 0.7452 | AY77: =0.9*AY80 -> 0.8694 | AZ77: 0.9729 | BA77: 1.06605 | BB77: 1.14885 | BC77: 1.2213 | BD77: 1.29375 | BE77: 1.3662 | BF77: 1.43865 | BG77: 1.5111 | BH77: 1.58355 | BI77: 1.656 | BJ77: 1.7595 | BK77: 1.8837 | BL77: 2.03895 | BN77: =0.9*BN80 -> 0.7452 | BO77: =0.9*BO80 -> 0.8694 | BP77: 0.9729 | BQ77: 1.06605 | BR77: 1.14885 | BS77: 1.2213 | BT77: 1.29375 | BU77: 1.3662 | BV77: 1.43865 | BW77: 1.5111 | BX77: 1.58355 | BY77: 1.656 | BZ77: 1.7595 | CA77: 1.8837 | CB77: 2.03895 | CD77: =0.9*CD80 -> 0.7776 | CE77: =0.9*CE80 -> 0.9072 | CF77: 1.0152 | CG77: 1.1124 | CH77: 1.1988 | CI77: 1.2744 | CJ77: 1.35 | CK77: 1.4256 | CL77: 1.5012 | CM77: 1.5768 | CN77: 1.6524 | CO77: 1.728 | CP77: 1.836 | CQ77: 1.9656 | CR77: 2.1276
A78: Elbus, endestation | B78: 0.648 | C78: 0.756 | D78: 0.846 | E78: 0.927 | F78: 0.999 | G78: 1.062 | H78: 1.125 | I78: 1.188 | J78: 1.251 | K78: 1.314 | L78: 1.377 | M78: 1.44 | N78: 1.53 | O78: 1.638 | P78: 1.773 | R78: =R77 -> 0.648 | S78: =S77 -> 0.756 | T78: 0.846 | U78: 0.927 | V78: 0.999 | W78: 1.062 | X78: 1.125 | Y78: 1.188 | Z78: 1.251 | AA78: 1.314 | AB78: 1.377 | AC78: 1.44 | AD78: 1.53 | AE78: 1.638 | AF78: 1.773 | AH78: =AH77 -> 0.648 | AI78: =AI77 -> 0.756 | AJ78: 0.846 | AK78: 0.927 | AL78: 0.999 | AM78: 1.062 | AN78: 1.125 | AO78: 1.188 | AP78: 1.251 | AQ78: 1.314 | AR78: 1.377 | AS78: 1.44 | AT78: 1.53 | AU78: 1.638 | AV78: 1.773 | AX78: =AX77 -> 0.7452 | AY78: =AY77 -> 0.8694 | AZ78: 0.9729 | BA78: 1.06605 | BB78: 1.14885 | BC78: 1.2213 | BD78: 1.29375 | BE78: 1.3662 | BF78: 1.43865 | BG78: 1.5111 | BH78: 1.58355 | BI78: 1.656 | BJ78: 1.7595 | BK78: 1.8837 | BL78: 2.03895 | BN78: =BN77 -> 0.7452 | BO78: =BO77 -> 0.8694 | BP78: 0.9729 | BQ78: 1.06605 | BR78: 1.14885 | BS78: 1.2213 | BT78: 1.29375 | BU78: 1.3662 | BV78: 1.43865 | BW78: 1.5111 | BX78: 1.58355 | BY78: 1.656 | BZ78: 1.7595 | CA78: 1.8837 | CB78: 2.03895 | CD78: =CD77 -> 0.7776 | CE78: =CE77 -> 0.9072 | CF78: 1.0152 | CG78: 1.1124 | CH78: 1.1988 | CI78: 1.2744 | CJ78: 1.35 | CK78: 1.4256 | CL78: 1.5012 | CM78: 1.5768 | CN78: 1.6524 | CO78: 1.728 | CP78: 1.836 | CQ78: 1.9656 | CR78: 2.1276
A79: Biogas | B79: 0.828 | C79: 0.966 | D79: 1.081 | E79: 1.1845 | F79: 1.2765 | G79: 1.357 | H79: 1.4375 | I79: 1.518 | J79: 1.5985 | K79: 1.679 | L79: 1.7595 | M79: 1.84 | N79: 1.955 | O79: 2.093 | P79: 2.2655 | R79: =115%*R80 -> 0.828 | S79: =115%*S80 -> 0.966 | T79: 1.081 | U79: 1.1845 | V79: 1.2765 | W79: 1.357 | X79: 1.4375 | Y79: 1.518 | Z79: 1.5985 | AA79: 1.679 | AB79: 1.7595 | AC79: 1.84 | AD79: 1.955 | AE79: 2.093 | AF79: 2.2655 | AH79: =115%*AH80 -> 0.828 | AI79: =115%*AI80 -> 0.966 | AJ79: 1.081 | AK79: 1.1845 | AL79: 1.2765 | AM79: 1.357 | AN79: 1.4375 | AO79: 1.518 | AP79: 1.5985 | AQ79: 1.679 | AR79: 1.7595 | AS79: 1.84 | AT79: 1.955 | AU79: 2.093 | AV79: 2.2655 | AX79: =115%*AX80 -> 0.9522 | AY79: =115%*AY80 -> 1.1109 | AZ79: 1.24315 | BA79: 1.362175 | BB79: 1.467975 | BC79: 1.56055 | BD79: 1.653125 | BE79: 1.7457 | BF79: 1.838275 | BG79: 1.93085 | BH79: 2.023425 | BI79: 2.116 | BJ79: 2.24825 | BK79: 2.40695 | BL79: 2.605325 | BN79: =115%*BN80 -> 0.9522 | BO79: =115%*BO80 -> 1.1109 | BP79: 1.24315 | BQ79: 1.362175 | BR79: 1.467975 | BS79: 1.56055 | BT79: 1.653125 | BU79: 1.7457 | BV79: 1.838275 | BW79: 1.93085 | BX79: 2.023425 | BY79: 2.116 | BZ79: 2.24825 | CA79: 2.40695 | CB79: 2.605325 | CD79: =115%*CD80 -> 0.9936 | CE79: =115%*CE80 -> 1.1592 | CF79: 1.2972 | CG79: 1.4214 | CH79: 1.5318 | CI79: 1.6284 | CJ79: 1.725 | CK79: 1.8216 | CL79: 1.9182 | CM79: 2.0148 | CN79: 2.1114 | CO79: 2.208 | CP79: 2.346 | CQ79: 2.5116 | CR79: 2.7186
A80: Diesel | B80: 0.72 | C80: 0.84 | D80: 0.94 | E80: 1.03 | F80: 1.11 | G80: 1.18 | H80: 1.25 | I80: 1.32 | J80: 1.39 | K80: 1.46 | L80: 1.53 | M80: 1.6 | N80: 1.7 | O80: 1.82 | P80: 1.97 | R80: =S80-0.12 -> 0.72 | S80: =T80-0.1 -> 0.84 | T80: =U80-0.09 -> 0.94 | U80: =V80-0.08 -> 1.03 | V80: =$X80-($AC80-$X80)*2/5 -> 1.11 | W80: =$X80-($AC80-$X80)*1/5 -> 1.18 | X80: 1.25 | Y80: =($AC80-$X80)*1/5+$X80 -> 1.32 | Z80: =($AC80-$X80)*2/5+$X80 -> 1.39 | AA80: =($AC80-$X80)*3/5+$X80 -> 1.46 | AB80: =($AC80-$X80)*4/5+$X80 -> 1.53 | AC80: 1.6 | AD80: =AC80+0.1 -> 1.7 | AE80: =AD80+0.12 -> 1.82 | AF80: =AE80+0.15 -> 1.97 | AH80: =S_13*R80 -> 0.72 | AI80: 0.84 | AJ80: 0.94 | AK80: 1.03 | AL80: 1.11 | AM80: 1.18 | AN80: 1.25 | AO80: 1.32 | AP80: 1.39 | AQ80: 1.46 | AR80: 1.53 | AS80: 1.6 | AT80: 1.7 | AU80: 1.82 | AV80: 1.97 | AX80: =S_137*R80 -> 0.828 | AY80: 0.966 | AZ80: 1.081 | BA80: 1.1845 | BB80: 1.2765 | BC80: 1.357 | BD80: 1.4375 | BE80: 1.518 | BF80: 1.5985 | BG80: 1.679 | BH80: 1.7595 | BI80: 1.84 | BJ80: 1.955 | BK80: 2.093 | BL80: 2.2655 | BN80: =S_15*R80 -> 0.828 | BO80: 0.966 | BP80: 1.081 | BQ80: 1.1845 | BR80: 1.2765 | BS80: 1.357 | BT80: 1.4375 | BU80: 1.518 | BV80: 1.5985 | BW80: 1.679 | BX80: 1.7595 | BY80: 1.84 | BZ80: 1.955 | CA80: 2.093 | CB80: 2.2655 | CD80: =S_18*R80 -> 0.864 | CE80: 1.008 | CF80: 1.128 | CG80: 1.236 | CH80: 1.332 | CI80: 1.416 | CJ80: 1.5 | CK80: 1.584 | CL80: 1.668 | CM80: 1.752 | CN80: 1.836 | CO80: 1.92 | CP80: 2.04 | CQ80: 2.184 | CR80: 2.364
A82: BUSLÆNGDE | B82: service pris % ift 12 m | C82: dæk
A83: 9-11,8 | B83: 1 | C83: 6
A84: 11,9-12,8 | B84: 1 | C84: 6
A85: 12,9-13,2 | B85: 1 | C85: 6
A86: 13.7 | B86: 1.15 | C86: 10
A87: 14,5-15 | B87: 1.15 | C87: 10
A88: 18-18,8 | B88: 1.2 | C88: 10
A90: elbusser, indskudsbusser
A91: per 20 driftsbus | B91: 10
A93: Servicepris ift km/år | B93: % ift 12 m
A94: ="< "&C94 -> < 40000 | B94: 1.15 | C94: 40000
A95: =">="&C94&"; <"&C95 -> >=40000; <45000 | B95: =$B$100+($C$100-C95)/($C$100-$C$94)*($B$94-$B$100) -> 1.125 | C95: 45000
A96: =">="&C95&"; <"&C96 -> >=45000; <50000 | B96: =$B$100+($C$100-C96)/($C$100-$C$94)*($B$94-$B$100) -> 1.1 | C96: 50000
A97: >=50000; <55000 | B97: =$B$100+($C$100-C97)/($C$100-$C$94)*($B$94-$B$100) -> 1.075 | C97: 55000
A98: >=55000; <60000 | B98: =$B$100+($C$100-C98)/($C$100-$C$94)*($B$94-$B$100) -> 1.05 | C98: 60000
A99: >=60000; <65000 | B99: =$B$100+($C$100-C99)/($C$100-$C$94)*($B$94-$B$100) -> 1.025 | C99: 65000
A100: >=65000; <70000 | B100: 1 | C100: 70000
A101: >=70000; <75000 | B101: 1 | C101: 75000
A102: >=75000; <80000 | B102: 1 | C102: 80000
A103: >=80000; <85000 | B103: =$B$102+($C$102-C103)/($C$102-$C$108)*($B$108-$B$102) -> 1.025 | C103: 85000
A104: >=85000; <90000 | B104: =$B$101+($C$101-C104)/($C$101-$C$108)*($B$108-$B$101) -> 1.064285714 | C104: 90000
A105: >=90000; <95000 | B105: =$B$101+($C$101-C105)/($C$101-$C$108)*($B$108-$B$101) -> 1.085714286 | C105: 95000
A106: >=95000; <100000 | B106: =$B$101+($C$101-C106)/($C$101-$C$108)*($B$108-$B$101) -> 1.107142857 | C106: 100000
A107: >=100000; <105000 | B107: =$B$101+($C$101-C107)/($C$101-$C$108)*($B$108-$B$101) -> 1.128571429 | C107: 105000
A108: >=105000; <110000 | B108: 1.15 | C108: 110000
A109: >=110000; <115000 | B109: =$B$101+($C$101-C109)/($C$101-$C$108)*($B$108-$B$101) -> 1.171428571 | C109: 115000
A110: >=115000; <120000 | B110: =$B$101+($C$101-C110)/($C$101-$C$108)*($B$108-$B$101) -> 1.192857143 | C110: 120000
A111: >=120000; <125000 | B111: =$B$101+($C$101-C111)/($C$101-$C$108)*($B$108-$B$101) -> 1.214285714 | C111: 125000
A112: >=125000; <130000 | B112: =$B$101+($C$101-C112)/($C$101-$C$108)*($B$108-$B$101) -> 1.235714286 | C112: 130000
A113: >=130000; <135000 | B113: =B112+B112-B111 -> 1.257142857 | C113: 135000
A114: >=135000; <140000 | B114: =B113+B113-B112 -> 1.278571429 | C114: 140000
A115: >=140000; <145000 | B115: 1.3 | C115: 145000
A116: =">"&C115 -> >145000 | B116: 1.321428571 | C116: 150000
A118: Ønsket løsning | B118: 1
A119: Reference | B119: 1
C120: 11 m | E120: 12 m | G120: 13 m | I120: 13,7 m | K120: 15 m | M120: 18 m
C121: elbus, depot | D121: elbus, endestation | E121: elbus, depot | F121: elbus, endestation | G121: elbus, depot | H121: elbus, endestation | I121: elbus, depot | J121: elbus, endestation | K121: elbus, depot | L121: elbus, endestation | M121: elbus, depot | N121: elbus, endestation
A122: ="< "&B122 -> < 40000 | B122: 40000 | C122: 0 | D122: 0 | E122: 0 | F122: 0 | G122: 0 | H122: 0 | I122: 0 | J122: 0 | K122: 0 | L122: 0 | M122: 0 | N122: 0
A123: =">="&B122&"; <"&B123 -> >=40000; <45000 | B123: 45000 | C123: 0 | D123: 0 | E123: 0 | F123: 0 | G123: 0 | H123: 0 | I123: 0 | J123: 0 | K123: 0 | L123: 0 | M123: 0 | N123: 0
A124: >=45000; <50000 | B124: 50000 | C124: 0 | D124: 0 | E124: 0 | F124: 0 | G124: 0 | H124: 0 | I124: 0 | J124: 0 | K124: 0 | L124: 0 | M124: 0 | N124: 0
A125: >=50000; <55000 | B125: 55000 | C125: 0 | D125: 0 | E125: 0 | F125: 0 | G125: 0 | H125: 0 | I125: 0 | J125: 0 | K125: 0 | L125: 0 | M125: 0 | N125: 0
A126: >=55000; <60000 | B126: 60000 | C126: 0 | D126: 0 | E126: 0 | F126: 0 | G126: 0 | H126: 0 | I126: 0 | J126: 0 | K126: 0 | L126: 0 | M126: 0 | N126: 0
A127: >=60000; <65000 | B127: 65000 | C127: 0 | D127: 0 | E127: 0 | F127: 0 | G127: 0 | H127: 0 | I127: 0.5 | J127: 0.5 | K127: 0.5 | L127: 0.5 | M127: 0.5 | N127: 0.5
A128: >=65000; <70000 | B128: 70000 | C128: 0.5 | D128: 0.5 | E128: 0.5 | F128: 0.5 | G128: 0.5 | H128: 0.5 | I128: 0.5 | J128: 0.5 | K128: 0.5 | L128: 0.5 | M128: 0.5 | N128: 0.5
A129: >=70000; <75000 | B129: 75000 | C129: 0.5 | D129: 0.5 | E129: 0.5 | F129: 0.5 | G129: 0.5 | H129: 0.5 | I129: 0.5 | J129: 0.5 | K129: 0.5 | L129: 0.5 | M129: 0.5 | N129: 0.5
A130: >=75000; <80000 | B130: 80000 | C130: 0.5 | D130: 0.5 | E130: 0.5 | F130: 0.5 | G130: 0.5 | H130: 0.5 | I130: 0.5 | J130: 0.5 | K130: 0.5 | L130: 0.5 | M130: 0.5 | N130: 0.5
A131: >=80000; <85000 | B131: 85000 | C131: 0.5 | D131: 0.5 | E131: 0.5 | F131: 0.5 | G131: 0.5 | H131: 0.5 | I131: 0.5 | J131: 0.5 | K131: 0.5 | L131: 0.5 | M131: 0.5 | N131: 0.5
A132: >=85000; <90000 | B132: 90000 | C132: 0.5 | D132: 0.5 | E132: 0.5 | F132: 0.5 | G132: 0.5 | H132: 0.5 | I132: 0.5 | J132: 0.5 | K132: 0.5 | L132: 0.5 | M132: 0.5 | N132: 0.5
A133: >=90000; <95000 | B133: 95000 | C133: 0.5 | D133: 0.5 | E133: 0.5 | F133: 0.5 | G133: 0.5 | H133: 0.5 | I133: 1 | J133: 0.5 | K133: 1 | L133: 0.5 | M133: 1 | N133: 0.5
A134: >=95000; <100000 | B134: 100000 | C134: 1 | D134: 0.5 | E134: 1 | F134: 0.5 | G134: 1 | H134: 0.5 | I134: 1 | J134: 0.5 | K134: 1 | L134: 0.5 | M134: 1 | N134: 0.5
A135: >=100000; <105000 | B135: 105000 | C135: 1 | D135: 0.5 | E135: 1 | F135: 0.5 | G135: 1 | H135: 0.5 | I135: 1 | J135: 0.5 | K135: 1 | L135: 0.5 | M135: 1 | N135: 0.5
A136: >=105000; <110000 | B136: 110000 | C136: 1 | D136: 0.5 | E136: 1 | F136: 0.5 | G136: 1 | H136: 0.5 | I136: 1 | J136: 0.5 | K136: 1 | L136: 0.5 | M136: 1 | N136: 0.5
A137: >=110000; <115000 | B137: 115000 | C137: 1 | D137: 0.5 | E137: 1 | F137: 0.5 | G137: 1 | H137: 0.5 | I137: 1 | J137: 0.5 | K137: 1 | L137: 0.5 | M137: 1 | N137: 0.5
A138: >=115000; <120000 | B138: 120000 | C138: 1 | D138: 0.5 | E138: 1 | F138: 0.5 | G138: 1 | H138: 0.5 | I138: 1 | J138: 0.5 | K138: 1 | L138: 0.5 | M138: 1 | N138: 0.5
A139: >=120000; <125000 | B139: 125000 | C139: 1 | D139: 0.5 | E139: 1 | F139: 0.5 | G139: 1 | H139: 0.5 | I139: 1 | J139: 0.5 | K139: 1 | L139: 0.5 | M139: 1 | N139: 0.5
A140: >=125000; <130000 | B140: 130000 | C140: 1 | D140: 0.5 | E140: 1 | F140: 0.5 | G140: 1 | H140: 0.5 | I140: 1 | J140: 0.5 | K140: 1 | L140: 0.5 | M140: 1 | N140: 0.5
A141: >=130000; <135000 | B141: 135000 | C141: 1 | D141: 0.5 | E141: 1 | F141: 0.5 | G141: 1 | H141: 0.5 | I141: 1.5 | J141: 0.5 | K141: 1.5 | L141: 0.5 | M141: 1.5 | N141: 0.5
A142: >=135000; <140000 | B142: 140000 | C142: 1.5 | D142: 0.5 | E142: 1.5 | F142: 0.5 | G142: 1.5 | H142: 0.5 | I142: 1.5 | J142: 0.5 | K142: 1.5 | L142: 0.5 | M142: 1.5 | N142: 0.5
A143: >=140000; <145000 | B143: 145000 | C143: 1.5 | D143: 0.5 | E143: 1.5 | F143: 0.5 | G143: 1.5 | H143: 0.5 | I143: 1.5 | J143: 0.5 | K143: 1.5 | L143: 0.5 | M143: 1.5 | N143: 0.5
A144: =">"&B143 -> >145000 | B144: 150000 | C144: 1.5 | D144: 0.5 | E144: 1.5 | F144: 0.5 | G144: 1.5 | H144: 0.5 | I144: 1.5 | J144: 0.5 | K144: 1.5 | L144: 0.5 | M144: 1.5 | N144: 0.5
A146: Ønsket løsning | B146: 90000 | C146: =MATCH(RutKmÅrØns,RutKmOps,0) -> 11
A149: Tomkørsel | B149: Bybusser, provins/forstad | C149: Bybusser, København | D149: Landevejsbusser
A150: % af rutekm | B150: 0.08 | C150: 0.08 | D150: 0.12
A152: kr/år for skader
A153: km/år | B153: 75000
A154: Bybusser, provins | B154: kr./år | C154: 20000
A155: Bybusser, storkøbenhavn | B155: kr./år | C155: 25000
A156: Landevejsbusser | B156: kr./år | C156: 15000
A158: Busantal
A159: reservebusser, per x driftsbusser | B159: 9.5
A161: DIESEL
A162: kr./l, inkl. moms | B162: 8
A164: HVO
A165: kr./l, inkl. moms | B165: 13.5
A167: BIOGAS
A168: kr./Nm3, inkl. moms | B168: 7.5
A170: EL
A171: kr./kWh, inkl. moms | B171: 0.8
A173: ADBLUE
A174: kr./l, inkl. moms | B174: 2
A175: forbrug, %-diesel | B175: 0.07
A177: PRIS, OLIE, INKL. MOMS
A178: kr./l | B178: 63
A179: forbrug, %-diesel | B179: 0.002
A181: PRIS, DÆK, INKL. MOMS
A182: kr./stk. | B182: 2500
A183: dæklevetid, km | B183: 100000
A185: CHAUFFØRLØN, kr. driftstime
A186: kr./t | B186: 400
A188: HASTIGHED
B189: Bybusser, provins/forstad | C189: Bybusser, København | D189: Landevejsbusser
A190: km/t | B190: 22 | C190: 19 | D190: 35
A192: Rente
A193: % | B193: 0.02
A195: Opsalg
A196: Øns. Buslæng. Opslag | B196: =MATCH(BusLænØns,BUSLÆNGDE,0) -> 2
A197: Ref. Buslæng. Opslag | B197: =MATCH(BusLænRef,BUSLÆNGDE,0) -> 2
A198: Drivmiddel opslag | B198: =MATCH(drivmiddel,ØnskLøs,0) -> 2
A199: Kørselstype opslag | B199: =MATCH(kørselØ,KØRSELSTYPE,0) -> 3
